Workbook

Sheet Instructions
A1: Manufacturer | B1: Roca Tile Group
A2: File as | B2: R
A3: Product Code | B3: G
A4: CCTD Effective Date | B4: 5/1/24 (Updated)
A8: Enter your Company Name
B10: Click on "Index" to set the print area for the price list index
B11: Then you can send it to print
B14: Click on "Suggested Price List" to set the print area for Conestoga Tile's suggested price list.
B15: Then you can send it to print
B18: Enter your discount codes if you want a personal net cost sheet.
B20: Product
B21: Code | C21: Disc. %
B22: =+B3 -> G
B24: Click on "Your Cost" to set the print area for your personal cost report.
B25: Then you can send it to print
A28: Discount: | B28: To help establish your price list, enter the gross profit percent for each type of product.
B29: If you want to use Conestoga Tile's list price, leave them blank.
A31: Round Nickel: | B31: If you always want your price to round to the nearest nickel, enter "YES".
B32: If you enter "NO", it will NOT round to the nearest nickel.
A34: Ending Cents: | B34: If you always want your price to end with a certain cents, enter that cent value.
B35: If you leave it "blank" will NOT round to this cent value.
B37: Group | C37: GP Margin | D37: GP Margin % for | F37: Round Nickel | G37: add/subtract | H37: Ending Cents
B38: 1 | D38: Field Tile | F38: No | G38: 0
B39: 2 | D39: Trim | F39: No | G39: 0
B40: 3 | D40: Decos | F40: No | G40: 0
B41: 4 | D41: 0 | F41: No | G41: 0
B42: 5 | D42: 0 | F42: No | G42: 0
B43: 6 | D43: 0 | F43: No | G43: 0
B44: 7 | D44: 0 | F44: No | G44: 0
A46: If you want to manually adjust your price list, hit "F5" and go to "Customer_Cost" to manually adjust pricing.
A47: You can enter a value in the column labeled "Adj." to change your price manually.
B49: Click on "Your Price Calculation" to set the print area for your personal cost calculation report.
B50: Then you can send it to print
B53: Click on "Your Price List" to set the print area for your personal price list.
B54: Then you can send it to print
H55: Yes
A57: If you have any questions on how to best use this spreadsheet, please feel free to contact
A58: Jim Vogel at (800) 422-6860, ext. 4201 or via e-mail at jimvogel@cctd.com

Sheet Index
G2: ="File '"&Instructions!B2&"' - "&Instructions!B1 -> File 'R' - Roca Tile Group
A5: ="Price List Index - "&Instructions!B4 -> Price List Index - 5/1/24 (Updated)
A10: Page | C10: Series | E10: Product Type | H10: Page | J10: Series | L10: Product Type
A11: 1 | C11: Abaco | E11: Color Body Porcelain | H11: 10 | J11: Magnolia | L11: Glazed Ceramic Wall
A12: 1 | C12: Abbey | E12: Color Body Porcelain | H12: 10 | J12: Maiolica | L12: Glazed Ceramic Wall
A13: 1 | C13: Alaska | E13: Polished Porcelain | H13: 10 | J13: Maiolica Floor | L13: Glazed Porcelain
A14: 1 | C14: Artesano | E14: Glazed Ceramic Wall | H14: 10 | J14: Marble Dolomita | L14: Glazed Porcelain
C15: Astoria - See Lithology Edition | H15: 10 | J15: Marble Lincoln | L15: Glazed Porcelain
A16: 1 | C16: Aura | E16: Glazed Ceramic Wall | H16: 10 | J16: Marble Platinum | L16: Glazed Porcelain
A17: 1 | C17: Avalon | E17: Glazed Porcelain | H17: 11 | J17: Mayne | L17: Glazed Porcelain
A18: 1 | C18: Bar Tile | E18: Glazed Ceramic Wall | H18: 11 | J18: Metals | L18: Brushed Aluminum Mosaics
C19: Basalt - See Lithology Edition | J19: Moscato - See Lithology Edition
A20: 1 | C20: Bianco Venatino | E20: Glazed Porcelain | H20: 11 | J20: Nolita | L20: Color Body Porcelain
A21: 2 | C21: Block | E21: Glazed Porcelain | H21: 11 | J21: Nordico | L21: Glazed Porcelain
A22: 2 | C22: Block | E22: Glazed Ceramic Wall | H22: 11 | J22: Olaria | L22: Glazed Ceramic Wall
A23: 2 | C23: Boheme | E23: Glazed Porcelain | H23: 11 | J23: Old Fashioned | L23: Glazed Porcelain
A24: 2 | C24: Borneo Chevron | E24: Glazed Porcelain | H24: 11 | J24: Ombre | L24: Glazed Ceramic Wall
A25: 2 | C25: Brickell | E25: Glazed Ceramic Wall | H25: 11 | J25: Onyx | L25: Glazed & Polished Porcelain
A26: 2 | C26: Calacatta Gold | E26: Glazed & Polished Porcelain | H26: 11 | J26: Pavers | L26: 2cm Porcelain Tile
A27: 2 | C27: Calacatta White | E27: Glazed Porcelain | H27: 12 | J27: Piasentina | L27: Glazed Porcelain
A28: 2 | C28: Carrara | E28: Glazed Porcelain | H28: 12 | J28: Pigment | L28: Color Body Porcelain
A29: 2 | C29: Carve | E29: Glazed Porcelain | H29: 12 | J29: Pine | L29: Glazed Porcelain
A30: 2 | C30: Casablanca | E30: Glazed Porcelain | J30: Polaris - See Lithology Edition
A31: 3 | C31: CC Cosmos | E31: Glazed Porcelain | H31: 12 | J31: Port Noir | L31: Glazed Porcelain
A32: 3 | C32: CC Frames | E32: Glazed Porcelain | H32: 12 | J32: Positano | L32: Glazed Porcelain
A33: 3 | C33: CC Mosaics | E33: Glazed Porcelain Mosaics | H33: 12 | J33: Pro | L33: Glazed Porcelain
A34: 3-4 | C34: CC Mosaics Plus+ | E34: Glazed Porcelain Mosaics | H34: 12 | J34: Pro Max | L34: Glazed Porcelain
A35: 4 | C35: CC Porcelain | E35: Unglazed Mosaics | H35: 13 | J35: Rock Art | L35: Natural Stone
A36: 4 | C36: CC Textures | E36: Glazed Ceramic Wall | J36: Sandstone - See Lithology Edition
A37: 4 | C37: Colonial | E37: Color Body Porcelain | H37: 13 | J37: Savoy | L37: Glazed Porcelain
A38: 4-6 | C38: Color Collection (Bright) | E38: Glazed Ceramic Wall | H38: 13 | J38: Seattle | L38: Glazed Porcelain
A39: 6-7 | C39: Color Collection (Matte) | E39: Glazed Ceramic Wall | H39: 14 | J39: Slabs | L39: Glazed Porcelain
A40: 7 | C40: Crystal | E40: Polished Porcelain | H40: 15 | J40: St. Tropez | L40: Glazed Ceramic Wall
A41: 7 | C41: Decorative Accents | E41: Glazed Ceramic Wall | H41: 15 | J41: Stardust | L41: Glazed Porcelain
A42: 7 | C42: Dimensions | E42: Glazed Ceramic Wall | H42: 15 | J42: Statuary | L42: Glazed & Polished Porcelain
A43: 8 | C43: Downtown | E43: Color Body Porcelain | H43: 15 | J43: Statuary | L43: Glazed Ceramic Wall
C44: Empire - See Lithology Edition | H44: 15 | J44: Stone Basel | L44: Color Body Porcelain
A45: 8 | C45: Essence | E45: Glazed Porcelain | H45: 15 | J45: Tegel | L45: Glazed Ceramic Wall
A46: 8 | C46: Everglade | E46: Glazed Porcelain | H46: 16 | J46: Terranova | L46: Color Body Porcelain
A47: 8 | C47: Feathers | E47: Glazed Porcelain | H47: 16 | J47: Tissue | L47: Glazed Ceramic Wall
A48: 8 | C48: Flow | E48: Glazed Ceramic Wall | H48: 16 | J48: Trevi | L48: Color Body Porcelain
A49: 8 | C49: Groove | E49: Glazed Ceramic Wall | H49: 16 | J49: Tribe | L49: Glazed Porcelain
A50: 8 | C50: Havana | E50: Glazed Porcelain | H50: 16 | J50: Unique Ground | L50: Glazed Porcelain
C51: Ibiza - See Lithology Edition | J51: Urban Antracita - See Lithology Edition
A52: 8 | C52: Jewels | E52: Glazed & Polished Porcelain | H52: 16 | J52: Venato | L52: Glazed & Polished Porcelain
A53: 9 | C53: June | E53: Glazed Porcelain | J53: Vesta - See Lithology Edition
A54: 9 | C54: Lassa | E54: Glazed & Polished Porcelain | H54: 16 | J54: Wind | L54: Glazed Ceramic Wall
A55: 9 | C55: Legend | E55: Glazed Porcelain | H55: 16 | J55: Zellige | L55: Glazed Ceramic Wall
A56: 9 | C56: Limestone | E56: Glazed Porcelain | H56: 16 | J56: Zen | L56: Glazed Ceramic Wall
A57: 9 | C57: Lithology Edition | E57: Glazed Porcelain | H57: 16 | J57: Zen Stone | L57: Glazed Porcelain
A58: 9 | C58: Liverpool | E58: Glazed Porcelain
A60: This price list is available electronically on an Excel spreadsheet at www.conestogatile.com/pricelists.
A62: The spreadsheet has many special features to assist you. Apply your discount to generate your net costs for your purchasing department. Apply your standard gross margin percentage or custom prices to generate your own custom price list for your showroom

Sheet Price List
B1: Field Tile | E1: Size | G1: Field | P1: SF/CTN | S1: =IF(Suggested="Yes",AA1,AG1) -> 0.05 | T1: SF | U1: =+Instructions!$B$3 -> G | W1: =+Instructions!$C$22 -> 0 | X1: =ROUND($AA1*(1-W1)+0.004999,2) -> 0.05 | Z1: new | AA1: 0.05 | AB1: =+W1 -> 0 | AC1: 0.05 | AD1: =(AG1-AC1)/AG1 -> 0 | AF1: 1 | AG1: =SUM(AJ1:AL1)+AE1 -> 0.05 | AJ1: =ROUND(AC1/(1-VLOOKUP(AF1,Group,2,FALSE)),2) -> 0.05 | AK1: =IF(VLOOKUP(AF1,Group,5,FALSE)="YES",VLOOKUP(ROUND(ROUND(AJ1,1)-AJ1,2),Round,2,FALSE)+VLOOKUP(AF1,Group,6,FALSE),0) -> 0 | AL1: =IF(VLOOKUP(AF1,Group,7,FALSE)="",0,ROUND(AJ1-0.04999,1)-AJ1+AM1) -> 0 | AM1: =IF(VLOOKUP(AF1,Group,7,FALSE)="","",VLOOKUP(AF1,Group,7,FALSE)) ->  | AO1: X
B2: Trim | E2: Size | G2: Shape | I2: Description | S2: =IF(Suggested="Yes",AA2,AG2) -> 0.05 | T2: EA | U2: =+Instructions!$B$3 -> G | W2: =+Instructions!$C$22 -> 0 | X2: 0.05 | Z2: new | AA2: 0.05 | AB2: 0 | AC2: 0.05 | AD2: 0 | AF2: 2 | AG2: 0.05 | AJ2: 0.05 | AK2: 0 | AL2: 0 | AO2: X
B3: Decos | E3: Size | G3: Shape | I3: Description | S3: =IF(Suggested="Yes",AA3,AG3) -> 0.05 | T3: EA | U3: =+Instructions!$B$3 -> G | W3: =+Instructions!$C$22 -> 0 | X3: 0.05 | Z3: new | AA3: 0.05 | AB3: 0 | AC3: 0.05 | AD3: 0 | AF3: 3 | AG3: 0.05 | AJ3: 0.05 | AK3: 0 | AL3: 0 | AO3: X
B4: 0 | E4: Size | G4: Shape | I4: Description | S4: =IF(Suggested="Yes",'Price List'!AA4,'Price List'!AG4) -> 0 | T4: EA | U4: =+Instructions!$B$3 -> G | W4: =+Instructions!$C$22 -> 0 | X4: 0 | Z4: new | AA4: 0 | AB4: 0 | AC4: 0 | AF4: 4 | AG4: 0 | AJ4: 0 | AK4: 0 | AL4: 0 | AO4: X
B5: 0 | E5: Size | G5: Shape | I5: Description | S5: =IF(Suggested="Yes",'Price List'!AA5,'Price List'!AG5) -> 0 | T5: EA | U5: =+Instructions!$B$3 -> G | W5: =+Instructions!$C$22 -> 0 | X5: 0 | Z5: new | AA5: 0 | AB5: 0 | AC5: 0 | AF5: 5 | AG5: 0 | AJ5: 0 | AK5: 0 | AL5: 0 | AO5: X
B6: 0 | E6: Size | G6: Shape | I6: Description | S6: =IF(Suggested="Yes",'Price List'!AA6,'Price List'!AG6) -> 0 | T6: EA | U6: =+Instructions!$B$3 -> G | W6: =+Instructions!$C$22 -> 0 | X6: 0 | Z6: new | AA6: 0 | AB6: 0 | AC6: 0 | AF6: 6 | AG6: 0 | AJ6: 0 | AK6: 0 | AL6: 0 | AO6: X
B7: 0 | E7: Size | G7: Shape | I7: Description | S7: =IF(Suggested="Yes",'Price List'!AA7,'Price List'!AG7) -> 0 | T7: EA | U7: =+Instructions!$B$3 -> G | W7: =+Instructions!$C$22 -> 0 | X7: 0 | Z7: new | AA7: 0 | AB7: 0 | AC7: 0 | AF7: 7 | AG7: 0 | AJ7: 0 | AK7: 0 | AL7: 0 | AO7: X
B8: Format | Q8: Stock | R8: a | S8: 1000 | T8: ABC | W8: 0.1 | X8: 1000 | Z8: ABC | AA8: 1000 | AB8: 0.1 | AC8: 1000 | AD8: 0.1 | AE8: 10 | AG8: 1000 | AO8: X
AO9: X
O10: Price List | W10: Cust. Cost | Z10: Customer Cost Calculation | AO10: X
D11: Sizes & Shapes | O11: Full Carton | Q11: Stock | R11: Note | S11: =IF(Suggested="Yes",AA11,AG11) -> List Price | T11: U/M | U11: Code | W11: Disc. | X11: Net | Z11: Chg | AA11: List Price | AB11: Disc | AC11: Act. Cost | AD11: GP% | AE11: Adj. | AF11: Group | AG11: Price | AJ11: Calc Price | AK11: .05 Round | AL11: Cents | AM11: Round to | AO11: X
AO12: X
O13: ="File '"&Instructions!B2&"' - "&Instructions!B1 -> File 'R' - Roca Tile Group | W13: Cost | AG13: Retail Price Calculations | AO13: X
T14: =+Instructions!B4 -> 5/1/24 (Updated) | AE14: =TODAY() -> 2024-05-22 | AO14: X
N15: =IF(Instructions!C8="","",+Instructions!C8) ->  | AO15: X
C16: ="Product Code '"&Instructions!B3&"'" -> Product Code 'G ' | AG16: =IF(Instructions!$C$8="","",Instructions!$C$8) ->  | AO16: X
AO17: X
C18: Sizes & Shapes | O18: Full Carton | Q18: Stock | R18: Note | S18: =+S$11 -> List Price | T18: U/M | U18: =+U$11 -> Code | W18: Disc. | X18: Net | Z18: Chg | AA18: List Price | AB18: =+AB$11 -> Disc | AC18: Act. Cost | AD18: GP% | AE18: Adj. | AF18: Group | AG18: Price | AJ18: =+AJ$11 -> Calc Price | AK18: =+AK$11 -> .05 Round | AL18: =+AL$11 -> Cents | AM18: =+AM$11 -> Round to | AO18: X
C19: ALL ITEMS MARKED WITH PACKAGING QUANTITY ARE SOLD IN MULTIPLES OF THAT QUANTITY ONLY | AO19: X
AO20: X
C21: ABACO - Color Body Porcelain | R21: Item # Lookup: | S21: ROAA | AO21: X
AO22: X
D23: Colors: | E23: Arena Grafito Gris | AO23: X
AO24: X
B25: Field Tile | E25: 12" x 24" | G25: Field | I25: Rectified | K25: Unpolished | P25: 13.56 SF/CTN | R25: a | S25: =IF(Suggested="Yes",AA25,AG25) -> 7.85 | T25: SF | U25: =+Instructions!$B$3 -> G | W25: =+Instructions!$C$22 -> 0 | X25: =ROUND($AA25*(1-W25)+0.004999,2) -> 7.85 | AA25: 7.85 | AB25: =+W25 -> 0 | AC25: =+X25 -> 7.85 | AD25: =(AG25-AC25)/AG25 -> 0 | AF25: 1 | AG25: =SUM(AJ25:AL25)+AE25 -> 7.85 | AJ25: =ROUND(AC25/(1-VLOOKUP(AF25,Group,2,FALSE)),2) -> 7.85 | AK25: =IF(VLOOKUP(AF25,Group,5,FALSE)="YES",VLOOKUP(ROUND(ROUND(AJ25,1)-AJ25,2),Round,2,FALSE)+VLOOKUP(AF25,Group,6,FALSE),0) -> 0 | AL25: =IF(VLOOKUP(AF25,Group,7,FALSE)="",0,ROUND(AJ25-0.04999,1)-AJ25+AM25) -> 0 | AM25: =IF(VLOOKUP(AF25,Group,7,FALSE)="","",VLOOKUP(AF25,Group,7,FALSE)) ->  | AO25: X
AO26: X
B27: Field Tile | E27: 24" x 48" | G27: Field | I27: Rectified | K27: In&Out | P27: 15.50 SF/CTN | R27: b,c | S27: =IF(Suggested="Yes",AA27,AG27) -> 9.6 | T27: SF | U27: =+Instructions!$B$3 -> G | W27: =+Instructions!$C$22 -> 0 | X27: =ROUND($AA27*(1-W27)+0.004999,2) -> 9.6 | AA27: 9.6 | AB27: =+W27 -> 0 | AC27: =+X27 -> 9.6 | AD27: =(AG27-AC27)/AG27 -> 0 | AF27: 1 | AG27: =SUM(AJ27:AL27)+AE27 -> 9.6 | AJ27: =ROUND(AC27/(1-VLOOKUP(AF27,Group,2,FALSE)),2) -> 9.6 | AK27: =IF(VLOOKUP(AF27,Group,5,FALSE)="YES",VLOOKUP(ROUND(ROUND(AJ27,1)-AJ27,2),Round,2,FALSE)+VLOOKUP(AF27,Group,6,FALSE),0) -> 0 | AL27: =IF(VLOOKUP(AF27,Group,7,FALSE)="",0,ROUND(AJ27-0.04999,1)-AJ27+AM27) -> 0 | AM27: =IF(VLOOKUP(AF27,Group,7,FALSE)="","",VLOOKUP(AF27,Group,7,FALSE)) ->  | AO27: X
AO28: X
D29: Notes: | E29: a) This format is going through a change of thickness. Packaging is changing from 13.56 SF/CTN to 15.50 SF/CTN as inventory | AO29: X
E30: with old packaging is depleted. Check with Customer Service to be sure which packaging amount you will be receiving. | AO30: X
E31: b) This format is going through a change of thickness. Packaging is changing from 15.50 SF/CTN to 23.25 SF/CTN as inventory | AO31: X
E32: with old packaging is depleted. Check with Customer Service to be sure which packaging amount you will be receiving. | AO32: X
E33: c) The In&Out finish provides a silky, and at the same time, slip resistant surface. | AO33: X
AO34: X
C35: ABBEY - Color Body Porcelain | R35: Item # Lookup: | S35: ROAB | AO35: X
AO36: X
D37: Colors: | E37: Fresno Gris Roble Vison | AO37: X
AO38: X
B39: Field Tile | E39: 8" x 48" | G39: Field | I39: Rectified | P39: 10.08 SF/CTN | R39: a | S39: =IF(Suggested="Yes",AA39,AG39) -> 7.4 | T39: SF | U39: =+Instructions!$B$3 -> G | W39: =+Instructions!$C$22 -> 0 | X39: =ROUND($AA39*(1-W39)+0.004999,2) -> 7.4 | AA39: 7.4 | AB39: =+W39 -> 0 | AC39: =+X39 -> 7.4 | AD39: =(AG39-AC39)/AG39 -> 0 | AF39: 1 | AG39: =SUM(AJ39:AL39)+AE39 -> 7.4 | AJ39: =ROUND(AC39/(1-VLOOKUP(AF39,Group,2,FALSE)),2) -> 7.4 | AK39: =IF(VLOOKUP(AF39,Group,5,FALSE)="YES",VLOOKUP(ROUND(ROUND(AJ39,1)-AJ39,2),Round,2,FALSE)+VLOOKUP(AF39,Group,6,FALSE),0) -> 0 | AL39: =IF(VLOOKUP(AF39,Group,7,FALSE)="",0,ROUND(AJ39-0.04999,1)-AJ39+AM39) -> 0 | AM39: =IF(VLOOKUP(AF39,Group,7,FALSE)="","",VLOOKUP(AF39,Group,7,FALSE)) ->  | AO39: X
B40: Field Tile | E40: 8" x 48" | G40: Field | I40: Rectified | K40: Non-slip (ABS) | P40: 20.13 SF/CTN | R40: b | S40: =IF(Suggested="Yes",AA40,AG40) -> 7.05 | T40: SF | U40: =+Instructions!$B$3 -> G | W40: =+Instructions!$C$22 -> 0 | X40: =ROUND($AA40*(1-W40)+0.004999,2) -> 7.05 | AA40: 7.05 | AB40: =+W40 -> 0 | AC40: =+X40 -> 7.05 | AD40: =(AG40-AC40)/AG40 -> 0 | AF40: 1 | AG40: =SUM(AJ40:AL40)+AE40 -> 7.05 | AJ40: =ROUND(AC40/(1-VLOOKUP(AF40,Group,2,FALSE)),2) -> 7.05 | AK40: =IF(VLOOKUP(AF40,Group,5,FALSE)="YES",VLOOKUP(ROUND(ROUND(AJ40,1)-AJ40,2),Round,2,FALSE)+VLOOKUP(AF40,Group,6,FALSE),0) -> 0 | AL40: =IF(VLOOKUP(AF40,Group,7,FALSE)="",0,ROUND(AJ40-0.04999,1)-AJ40+AM40) -> 0 | AM40: =IF(VLOOKUP(AF40,Group,7,FALSE)="","",VLOOKUP(AF40,Group,7,FALSE)) ->  | AO40: X
AO41: X
D42: Color: | E42: Roble | AO42: X
AO43: X
B44: Field Tile | E44: 12" x 36" | G44: Field | I44: Rectified | K44: Suite Abbey | P44: 14.53 SF/CTN | R44: c | S44: =IF(Suggested="Yes",AA44,AG44) -> 8.65 | T44: SF | U44: =+Instructions!$B$3 -> G | W44: =+Instructions!$C$22 -> 0 | X44: =ROUND($AA44*(1-W44)+0.004999,2) -> 8.65 | AA44: 8.65 | AB44: =+W44 -> 0 | AC44: =+X44 -> 8.65 | AD44: =(AG44-AC44)/AG44 -> 0 | AF44: 1 | AG44: =SUM(AJ44:AL44)+AE44 -> 8.65 | AJ44: =ROUND(AC44/(1-VLOOKUP(AF44,Group,2,FALSE)),2) -> 8.65 | AK44: =IF(VLOOKUP(AF44,Group,5,FALSE)="YES",VLOOKUP(ROUND(ROUND(AJ44,1)-AJ44,2),Round,2,FALSE)+VLOOKUP(AF44,Group,6,FALSE),0) -> 0 | AL44: =IF(VLOOKUP(AF44,Group,7,FALSE)="",0,ROUND(AJ44-0.04999,1)-AJ44+AM44) -> 0 | AM44: =IF(VLOOKUP(AF44,Group,7,FALSE)="","",VLOOKUP(AF44,Group,7,FALSE)) ->  | AO44: X
AO45: X
D46: Notes: | E46: a) This format is going through a change of thickness. Packaging is changing from 10.08 SF/CTN to either 12.60 or 20.15 SF/CTN | AO46: X
E47: as inventory with old packaging is depleted. Check with Customer Service to be sure which packaging amount you will be receiving. | AO47: X
E48: b) This format is going through a change of thickness. Packaging is changing from 14.56 SF/CTN to either 12.60 or 20.15 SF/CTN | AO48: X
E49: as inventory with old packaging is depleted. Check with Customer Service to be sure which packaging amount you will be receiving. | AO49: X
E50: c) This is a glazed ceramic tile and is for wall use only. | AO50: X
AO51: X
C52: ALASKA - Polished Porcelain | R52: Item # Lookup: | S52: ROAL | AO52: X
AO53: X
D54: Color: | E54: Alaska White | AO54: X
AO55: X
B56: Field Tile | E56: 24" x 48" | G56: Field | I56: Rectified | K56: Polished | P56: 15.50 SF/CTN | S56: =IF(Suggested="Yes",AA56,AG56) -> 6.1 | T56: SF | U56: =+Instructions!$B$3 -> G | W56: =+Instructions!$C$22 -> 0 | X56: =ROUND($AA56*(1-W56)+0.004999,2) -> 6.1 | AA56: 6.1 | AB56: =+W56 -> 0 | AC56: =+X56 -> 6.1 | AD56: =(AG56-AC56)/AG56 -> 0 | AF56: 1 | AG56: =SUM(AJ56:AL56)+AE56 -> 6.1 | AJ56: =ROUND(AC56/(1-VLOOKUP(AF56,Group,2,FALSE)),2) -> 6.1 | AK56: =IF(VLOOKUP(AF56,Group,5,FALSE)="YES",VLOOKUP(ROUND(ROUND(AJ56,1)-AJ56,2),Round,2,FALSE)+VLOOKUP(AF56,Group,6,FALSE),0) -> 0 | AL56: =IF(VLOOKUP(AF56,Group,7,FALSE)="",0,ROUND(AJ56-0.04999,1)-AJ56+AM56) -> 0 | AM56: =IF(VLOOKUP(AF56,Group,7,FALSE)="","",VLOOKUP(AF56,Group,7,FALSE)) ->  | AO56: X
AO57: X
C58: ARTESANO - Glazed Ceramic Wall | R58: Item # Lookup: | S58: ROAR | AO58: X
AO59: X
D60: Colors: | E60: Biscuit (Bright) | G60: Black (Matte) | K60: White Ice (Bright) | AO60: X
E61: Black (Bright) | G61: Neu Gray (Bright) | K61: White Ice (Matte) | AO61: X
AO62: X
B63: Field Tile | E63: 3" x 12" | G63: Field | P63: 12.70 SF/CTN | S63: =IF(Suggested="Yes",AA63,AG63) -> 6.65 | T63: SF | U63: =+Instructions!$B$3 -> G | W63: =+Instructions!$C$22 -> 0 | X63: =ROUND($AA63*(1-W63)+0.004999,2) -> 6.65 | AA63: 6.65 | AB63: =+W63 -> 0 | AC63: =+X63 -> 6.65 | AD63: =(AG63-AC63)/AG63 -> 0 | AF63: 1 | AG63: =SUM(AJ63:AL63)+AE63 -> 6.65 | AJ63: =ROUND(AC63/(1-VLOOKUP(AF63,Group,2,FALSE)),2) -> 6.65 | AK63: =IF(VLOOKUP(AF63,Group,5,FALSE)="YES",VLOOKUP(ROUND(ROUND(AJ63,1)-AJ63,2),Round,2,FALSE)+VLOOKUP(AF63,Group,6,FALSE),0) -> 0 | AL63: =IF(VLOOKUP(AF63,Group,7,FALSE)="",0,ROUND(AJ63-0.04999,1)-AJ63+AM63) -> 0 | AM63: =IF(VLOOKUP(AF63,Group,7,FALSE)="","",VLOOKUP(AF63,Group,7,FALSE)) ->  | AO63: X
AO64: X
B65: Trim | E65: 3" x 12" | G65: Bullnose | S65: =IF(Suggested="Yes",AA65,AG65) -> 9.25 | T65: EA | U65: =+Instructions!$B$3 -> G | W65: =+Instructions!$C$22 -> 0 | X65: 9.25 | AA65: 9.25 | AB65: 0 | AC65: 9.25 | AD65: 0 | AF65: 2 | AG65: 9.25 | AJ65: 9.25 | AK65: 0 | AL65: 0 | AO65: X
AO66: X
C67: ASTORIA - See LITHOLOGY EDITION | AO67: X
AO68: X
C69: AURA - Glazed Ceramic Wall | R69: Item # Lookup: | S69: ROAU | AO69: X
AO70: X
D71: Colors: | E71: Aquamarine Ocean Blue Seashell | AO71: X
AO72: X
B73: Field Tile | E73: 4" x 12" | G73: Field | K73: Bright | P73: 11.52 SF/CTN | S73: =IF(Suggested="Yes",AA73,AG73) -> 8.05 | T73: SF | U73: =+Instructions!$B$3 -> G | W73: =+Instructions!$C$22 -> 0 | X73: =ROUND($AA73*(1-W73)+0.004999,2) -> 8.05 | AA73: 8.05 | AB73: =+W73 -> 0 | AC73: =+X73 -> 8.05 | AD73: =(AG73-AC73)/AG73 -> 0 | AF73: 1 | AG73: =SUM(AJ73:AL73)+AE73 -> 8.05 | AJ73: =ROUND(AC73/(1-VLOOKUP(AF73,Group,2,FALSE)),2) -> 8.05 | AK73: =IF(VLOOKUP(AF73,Group,5,FALSE)="YES",VLOOKUP(ROUND(ROUND(AJ73,1)-AJ73,2),Round,2,FALSE)+VLOOKUP(AF73,Group,6,FALSE),0) -> 0 | AL73: =IF(VLOOKUP(AF73,Group,7,FALSE)="",0,ROUND(AJ73-0.04999,1)-AJ73+AM73) -> 0 | AM73: =IF(VLOOKUP(AF73,Group,7,FALSE)="","",VLOOKUP(AF73,Group,7,FALSE)) ->  | AO73: X
AO74: X
C75: AVALON - Glazed Porcelain | R75: Item # Lookup: | S75: ROAV | AO75: X
AO76: X
D77: Colors: | E77: Arena Blanco | AO77: X
AO78: X
B79: Field Tile | E79: 12" x 24" | G79: Field | I79: Rectified | P79: 15.50 SF/CTN | S79: =IF(Suggested="Yes",AA79,AG79) -> 7.65 | T79: SF | U79: =+Instructions!$B$3 -> G | W79: =+Instructions!$C$22 -> 0 | X79: =ROUND($AA79*(1-W79)+0.004999,2) -> 7.65 | AA79: 7.65 | AB79: =+W79 -> 0 | AC79: =+X79 -> 7.65 | AD79: =(AG79-AC79)/AG79 -> 0 | AF79: 1 | AG79: =SUM(AJ79:AL79)+AE79 -> 7.65 | AJ79: =ROUND(AC79/(1-VLOOKUP(AF79,Group,2,FALSE)),2) -> 7.65 | AK79: =IF(VLOOKUP(AF79,Group,5,FALSE)="YES",VLOOKUP(ROUND(ROUND(AJ79,1)-AJ79,2),Round,2,FALSE)+VLOOKUP(AF79,Group,6,FALSE),0) -> 0 | AL79: =IF(VLOOKUP(AF79,Group,7,FALSE)="",0,ROUND(AJ79-0.04999,1)-AJ79+AM79) -> 0 | AM79: =IF(VLOOKUP(AF79,Group,7,FALSE)="","",VLOOKUP(AF79,Group,7,FALSE)) ->  | AO79: X
B80: Field Tile | E80: 24" x 24" | G80: Field | I80: Rectified | P80: 15.50 SF/CTN | S80: =IF(Suggested="Yes",AA80,AG80) -> 7.85 | T80: SF | U80: =+Instructions!$B$3 -> G | W80: =+Instructions!$C$22 -> 0 | X80: =ROUND($AA80*(1-W80)+0.004999,2) -> 7.85 | AA80: 7.85 | AB80: =+W80 -> 0 | AC80: =+X80 -> 7.85 | AD80: =(AG80-AC80)/AG80 -> 0 | AF80: 1 | AG80: =SUM(AJ80:AL80)+AE80 -> 7.85 | AJ80: =ROUND(AC80/(1-VLOOKUP(AF80,Group,2,FALSE)),2) -> 7.85 | AK80: =IF(VLOOKUP(AF80,Group,5,FALSE)="YES",VLOOKUP(ROUND(ROUND(AJ80,1)-AJ80,2),Round,2,FALSE)+VLOOKUP(AF80,Group,6,FALSE),0) -> 0 | AL80: =IF(VLOOKUP(AF80,Group,7,FALSE)="",0,ROUND(AJ80-0.04999,1)-AJ80+AM80) -> 0 | AM80: =IF(VLOOKUP(AF80,Group,7,FALSE)="","",VLOOKUP(AF80,Group,7,FALSE)) ->  | AO80: X
B81: Field Tile | E81: 24" x 48" | G81: Field | I81: Rectified | P81: 23.25 SF/CTN | S81: =IF(Suggested="Yes",AA81,AG81) -> 9.1 | T81: SF | U81: =+Instructions!$B$3 -> G | W81: =+Instructions!$C$22 -> 0 | X81: 9.1 | AA81: 9.1 | AB81: 0 | AC81: 9.1 | AD81: 0 | AF81: 1 | AG81: 9.1 | AJ81: 9.1 | AK81: 0 | AL81: 0 | AO81: X
AO82: X
B83: Field Tile | E83: 12" x 36" | G83: Field | I83: Rectified | K83: Suite Avalon | P83: 14.53 SF/CTN | S83: =IF(Suggested="Yes",AA83,AG83) -> 8.1 | T83: SF | U83: =+Instructions!$B$3 -> G | W83: =+Instructions!$C$22 -> 0 | X83: =ROUND($AA83*(1-W83)+0.004999,2) -> 8.1 | AA83: 8.1 | AB83: =+W83 -> 0 | AC83: =+X83 -> 8.1 | AD83: =(AG83-AC83)/AG83 -> 0 | AF83: 1 | AG83: =SUM(AJ83:AL83)+AE83 -> 8.1 | AJ83: =ROUND(AC83/(1-VLOOKUP(AF83,Group,2,FALSE)),2) -> 8.1 | AK83: =IF(VLOOKUP(AF83,Group,5,FALSE)="YES",VLOOKUP(ROUND(ROUND(AJ83,1)-AJ83,2),Round,2,FALSE)+VLOOKUP(AF83,Group,6,FALSE),0) -> 0 | AL83: =IF(VLOOKUP(AF83,Group,7,FALSE)="",0,ROUND(AJ83-0.04999,1)-AJ83+AM83) -> 0 | AM83: =IF(VLOOKUP(AF83,Group,7,FALSE)="","",VLOOKUP(AF83,Group,7,FALSE)) ->  | AO83: X
AO84: X
C85: BAR TILE - Glazed Ceramic Wall | R85: Item # Lookup: | S85: ROBT | AO85: X
AO86: X
D87: Colors: | E87: Glasgow Havre Lisbon Nuuk Oslo | AO87: X
AO88: X
B89: Field Tile | E89: 3" x 12" | G89: Field | K89: Bright | P89: 12.70 SF/CTN | S89: =IF(Suggested="Yes",AA89,AG89) -> 7.8 | T89: SF | U89: =+Instructions!$B$3 -> G | W89: =+Instructions!$C$22 -> 0 | X89: =ROUND($AA89*(1-W89)+0.004999,2) -> 7.8 | AA89: 7.8 | AB89: =+W89 -> 0 | AC89: =+X89 -> 7.8 | AD89: =(AG89-AC89)/AG89 -> 0 | AF89: 1 | AG89: =SUM(AJ89:AL89)+AE89 -> 7.8 | AJ89: =ROUND(AC89/(1-VLOOKUP(AF89,Group,2,FALSE)),2) -> 7.8 | AK89: =IF(VLOOKUP(AF89,Group,5,FALSE)="YES",VLOOKUP(ROUND(ROUND(AJ89,1)-AJ89,2),Round,2,FALSE)+VLOOKUP(AF89,Group,6,FALSE),0) -> 0 | AL89: =IF(VLOOKUP(AF89,Group,7,FALSE)="",0,ROUND(AJ89-0.04999,1)-AJ89+AM89) -> 0 | AM89: =IF(VLOOKUP(AF89,Group,7,FALSE)="","",VLOOKUP(AF89,Group,7,FALSE)) ->  | AO89: X
AO90: X
B91: Trim | E91: 3" x 12" | G91: Bullnose | K91: Bright | S91: =IF(Suggested="Yes",AA91,AG91) -> 9.25 | T91: EA | U91: =+Instructions!$B$3 -> G | W91: =+Instructions!$C$22 -> 0 | X91: 9.25 | AA91: 9.25 | AB91: 0 | AC91: 9.25 | AD91: 0 | AF91: 2 | AG91: 9.25 | AJ91: 9.25 | AK91: 0 | AL91: 0 | AO91: X
AO92: X
C93: BASALT - See LITHOLOGY EDITION | AO93: X
AO94: X
C95: BIANCO VENATINO - Glazed Porcelain | R95: Item # Lookup: | S95: ROBV | AO95: X
AO96: X
D97: Color: | E97: Bianco Venatino | AO97: X
AO98: X
B99: Field Tile | E99: 12" x 24" | G99: Field | I99: Rectified | K99: Polished | P99: 18.94 SF/CTN | S99: =IF(Suggested="Yes",AA99,AG99) -> 6.6 | T99: SF | U99: =+Instructions!$B$3 -> G | W99: =+Instructions!$C$22 -> 0 | X99: =ROUND($AA99*(1-W99)+0.004999,2) -> 6.6 | AA99: 6.6 | AB99: =+W99 -> 0 | AC99: 6.6 | AD99: =(AG99-AC99)/AG99 -> 0 | AF99: 1 | AG99: =SUM(AJ99:AL99)+AE99 -> 6.6 | AJ99: =ROUND(AC99/(1-VLOOKUP(AF99,Group,2,FALSE)),2) -> 6.6 | AK99: =IF(VLOOKUP(AF99,Group,5,FALSE)="YES",VLOOKUP(ROUND(ROUND(AJ99,1)-AJ99,2),Round,2,FALSE)+VLOOKUP(AF99,Group,6,FALSE),0) -> 0 | AL99: =IF(VLOOKUP(AF99,Group,7,FALSE)="",0,ROUND(AJ99-0.04999,1)-AJ99+AM99) -> 0 | AM99: =IF(VLOOKUP(AF99,Group,7,FALSE)="","",VLOOKUP(AF99,Group,7,FALSE)) ->  | AO99: X
B100: Field Tile | E100: 24" x 24" | G100: Field | I100: Rectified | K100: Polished | P100: 19.05 SF/CTN | S100: =IF(Suggested="Yes",AA100,AG100) -> 6.65 | T100: SF | U100: =+Instructions!$B$3 -> G | W100: =+Instructions!$C$22 -> 0 | X100: =ROUND($AA100*(1-W100)+0.004999,2) -> 6.65 | AA100: 6.65 | AB100: 0 | AC100: 6.65 | AD100: =(AG100-AC100)/AG100 -> 0 | AF100: 1 | AG100: =SUM(AJ100:AL100)+AE100 -> 6.65 | AJ100: =ROUND(AC100/(1-VLOOKUP(AF100,Group,2,FALSE)),2) -> 6.65 | AK100: =IF(VLOOKUP(AF100,Group,5,FALSE)="YES",VLOOKUP(ROUND(ROUND(AJ100,1)-AJ100,2),Round,2,FALSE)+VLOOKUP(AF100,Group,6,FALSE),0) -> 0 | AL100: =IF(VLOOKUP(AF100,Group,7,FALSE)="",0,ROUND(AJ100-0.04999,1)-AJ100+AM100) -> 0 | AM100: =IF(VLOOKUP(AF100,Group,7,FALSE)="","",VLOOKUP(AF100,Group,7,FALSE)) ->  | AO100: X
B101: Field Tile | E101: 35" x 35" | G101: Field | I101: Rectified | K101: Polished | P101: 25.83 SF/CTN | S101: =IF(Suggested="Yes",AA101,AG101) -> 7.55 | T101: SF | U101: =+Instructions!$B$3 -> G | W101: =+Instructions!$C$22 -> 0 | X101: =ROUND($AA101*(1-W101)+0.004999,2) -> 7.55 | AA101: 7.55 | AB101: 0 | AC101: 7.55 | AD101: =(AG101-AC101)/AG101 -> 0 | AF101: 1 | AG101: =SUM(AJ101:AL101)+AE101 -> 7.55 | AJ101: =ROUND(AC101/(1-VLOOKUP(AF101,Group,2,FALSE)),2) -> 7.55 | AK101: =IF(VLOOKUP(AF101,Group,5,FALSE)="YES",VLOOKUP(ROUND(ROUND(AJ101,1)-AJ101,2),Round,2,FALSE)+VLOOKUP(AF101,Group,6,FALSE),0) -> 0 | AL101: =IF(VLOOKUP(AF101,Group,7,FALSE)="",0,ROUND(AJ101-0.04999,1)-AJ101+AM101) -> 0 | AM101: =IF(VLOOKUP(AF101,Group,7,FALSE)="","",VLOOKUP(AF101,Group,7,FALSE)) ->  | AO101: X
B102: Field Tile | E102: 24" x 48" | G102: Field | I102: Rectified | K102: Polished | P102: 15.28 SF/CTN | R102: a | S102: =IF(Suggested="Yes",AA102,AG102) -> 8.2 | T102: SF | U102: =+Instructions!$B$3 -> G | W102: =+Instructions!$C$22 -> 0 | X102: =ROUND($AA102*(1-W102)+0.004999,2) -> 8.2 | AA102: 8.2 | AB102: 0 | AC102: 8.2 | AD102: =(AG102-AC102)/AG102 -> 0 | AF102: 1 | AG102: =SUM(AJ102:AL102)+AE102 -> 8.2 | AJ102: =ROUND(AC102/(1-VLOOKUP(AF102,Group,2,FALSE)),2) -> 8.2 | AK102: =IF(VLOOKUP(AF102,Group,5,FALSE)="YES",VLOOKUP(ROUND(ROUND(AJ102,1)-AJ102,2),Round,2,FALSE)+VLOOKUP(AF102,Group,6,FALSE),0) -> 0 | AL102: =IF(VLOOKUP(AF102,Group,7,FALSE)="",0,ROUND(AJ102-0.04999,1)-AJ102+AM102) -> 0 | AM102: =IF(VLOOKUP(AF102,Group,7,FALSE)="","",VLOOKUP(AF102,Group,7,FALSE)) ->  | AO102: X
AO103: X
B104: Field Tile | E104: 12" x 24" | G104: Field | I104: Rectified | K104: Unpolished | P104: 18.94 SF/CTN | S104: =IF(Suggested="Yes",AA104,AG104) -> 5.45 | T104: SF | U104: =+Instructions!$B$3 -> G | W104: =+Instructions!$C$22 -> 0 | X104: =ROUND($AA104*(1-W104)+0.004999,2) -> 5.45 | AA104: 5.45 | AB104: =+W104 -> 0 | AC104: 5.45 | AD104: =(AG104-AC104)/AG104 -> 0 | AF104: 1 | AG104: =SUM(AJ104:AL104)+AE104 -> 5.45 | AJ104: =ROUND(AC104/(1-VLOOKUP(AF104,Group,2,FALSE)),2) -> 5.45 | AK104: =IF(VLOOKUP(AF104,Group,5,FALSE)="YES",VLOOKUP(ROUND(ROUND(AJ104,1)-AJ104,2),Round,2,FALSE)+VLOOKUP(AF104,Group,6,FALSE),0) -> 0 | AL104: =IF(VLOOKUP(AF104,Group,7,FALSE)="",0,ROUND(AJ104-0.04999,1)-AJ104+AM104) -> 0 | AM104: =IF(VLOOKUP(AF104,Group,7,FALSE)="","",VLOOKUP(AF104,Group,7,FALSE)) ->  | AO104: X
B105: Field Tile | E105: 24" x 24" | G105: Field | I105: Rectified | K105: Unpolished | P105: 19.05 SF/CTN | S105: =IF(Suggested="Yes",AA105,AG105) -> 5.5 | T105: SF | U105: =+Instructions!$B$3 -> G | W105: =+Instructions!$C$22 -> 0 | X105: =ROUND($AA105*(1-W105)+0.004999,2) -> 5.5 | AA105: 5.5 | AB105: 0 | AC105: 5.5 | AD105: =(AG105-AC105)/AG105 -> 0 | AF105: 1 | AG105: =SUM(AJ105:AL105)+AE105 -> 5.5 | AJ105: =ROUND(AC105/(1-VLOOKUP(AF105,Group,2,FALSE)),2) -> 5.5 | AK105: =IF(VLOOKUP(AF105,Group,5,FALSE)="YES",VLOOKUP(ROUND(ROUND(AJ105,1)-AJ105,2),Round,2,FALSE)+VLOOKUP(AF105,Group,6,FALSE),0) -> 0 | AL105: =IF(VLOOKUP(AF105,Group,7,FALSE)="",0,ROUND(AJ105-0.04999,1)-AJ105+AM105) -> 0 | AM105: =IF(VLOOKUP(AF105,Group,7,FALSE)="","",VLOOKUP(AF105,Group,7,FALSE)) ->  | AO105: X
B106: Field Tile | E106: 35" x 35" | G106: Field | I106: Rectified | K106: Unpolished | P106: 17.22 SF/CTN | R106: b | S106: =IF(Suggested="Yes",AA106,AG106) -> 6.5 | T106: SF | U106: =+Instructions!$B$3 -> G | W106: =+Instructions!$C$22 -> 0 | X106: =ROUND($AA106*(1-W106)+0.004999,2) -> 6.5 | AA106: 6.5 | AB106: 0 | AC106: 6.5 | AD106: =(AG106-AC106)/AG106 -> 0 | AF106: 1 | AG106: =SUM(AJ106:AL106)+AE106 -> 6.5 | AJ106: =ROUND(AC106/(1-VLOOKUP(AF106,Group,2,FALSE)),2) -> 6.5 | AK106: =IF(VLOOKUP(AF106,Group,5,FALSE)="YES",VLOOKUP(ROUND(ROUND(AJ106,1)-AJ106,2),Round,2,FALSE)+VLOOKUP(AF106,Group,6,FALSE),0) -> 0 | AL106: =IF(VLOOKUP(AF106,Group,7,FALSE)="",0,ROUND(AJ106-0.04999,1)-AJ106+AM106) -> 0 | AM106: =IF(VLOOKUP(AF106,Group,7,FALSE)="","",VLOOKUP(AF106,Group,7,FALSE)) ->  | AO106: X
B107: Field Tile | E107: 24" x 48" | G107: Field | I107: Rectified | K107: Unpolished | P107: 15.28 SF/CTN | R107: a | S107: =IF(Suggested="Yes",AA107,AG107) -> 7 | T107: SF | U107: =+Instructions!$B$3 -> G | W107: =+Instructions!$C$22 -> 0 | X107: =ROUND($AA107*(1-W107)+0.004999,2) -> 7 | AA107: 7 | AB107: 0 | AC107: 7 | AD107: =(AG107-AC107)/AG107 -> 0 | AF107: 1 | AG107: =SUM(AJ107:AL107)+AE107 -> 7 | AJ107: =ROUND(AC107/(1-VLOOKUP(AF107,Group,2,FALSE)),2) -> 7 | AK107: =IF(VLOOKUP(AF107,Group,5,FALSE)="YES",VLOOKUP(ROUND(ROUND(AJ107,1)-AJ107,2),Round,2,FALSE)+VLOOKUP(AF107,Group,6,FALSE),0) -> 0 | AL107: =IF(VLOOKUP(AF107,Group,7,FALSE)="",0,ROUND(AJ107-0.04999,1)-AJ107+AM107) -> 0 | AM107: =IF(VLOOKUP(AF107,Group,7,FALSE)="","",VLOOKUP(AF107,Group,7,FALSE)) ->  | AO107: X
AO108: X
B109: Decos | E109: 13" x 13" | G109: Mosaic | I109: 2" x 2" (Mesh-Mounted) | L109: Unpolished | P109: 1.19 SF/SHEET | S109: =IF(Suggested="Yes",AA109,AG109) -> 23.55 | T109: EA | U109: =+Instructions!$B$3 -> G | W109: =+Instructions!$C$22 -> 0 | X109: =ROUND($AA109*(1-W109)+0.004999,2) -> 23.55 | AA109: 23.55 | AB109: =+W109 -> 0 | AC109: =+X109 -> 23.55 | AD109: =(AG109-AC109)/AG109 -> 0 | AF109: 3 | AG109: =SUM(AJ109:AL109)+AE109 -> 23.55 | AJ109: =ROUND(AC109/(1-VLOOKUP(AF109,Group,2,FALSE)),2) -> 23.55 | AK109: =IF(VLOOKUP(AF109,Group,5,FALSE)="YES",VLOOKUP(ROUND(ROUND(AJ109,1)-AJ109,2),Round,2,FALSE)+VLOOKUP(AF109,Group,6,FALSE),0) -> 0 | AL109: =IF(VLOOKUP(AF109,Group,7,FALSE)="",0,ROUND(AJ109-0.04999,1)-AJ109+AM109) -> 0 | AM109: =IF(VLOOKUP(AF109,Group,7,FALSE)="","",VLOOKUP(AF109,Group,7,FALSE)) ->  | AO109: X
AO110: X
B111: Trim | E111: 3" x 12" | G111: S4312 | I111: Bullnose | L111: Unpolished | S111: =IF(Suggested="Yes",AA111,AG111) -> 5.95 | T111: EA | U111: =+Instructions!$B$3 -> G | W111: =+Instructions!$C$22 -> 0 | X111: =ROUND($AA111*(1-W111)+0.004999,2) -> 5.95 | AA111: 5.95 | AB111: =+W111 -> 0 | AC111: =+X111 -> 5.95 | AD111: =(AG111-AC111)/AG111 -> 0 | AF111: 2 | AG111: =SUM(AJ111:AL111)+AE111 -> 5.95 | AJ111: =ROUND(AC111/(1-VLOOKUP(AF111,Group,2,FALSE)),2) -> 5.95 | AK111: =IF(VLOOKUP(AF111,Group,5,FALSE)="YES",VLOOKUP(ROUND(ROUND(AJ111,1)-AJ111,2),Round,2,FALSE)+VLOOKUP(AF111,Group,6,FALSE),0) -> 0 | AL111: =IF(VLOOKUP(AF111,Group,7,FALSE)="",0,ROUND(AJ111-0.04999,1)-AJ111+AM111) -> 0 | AM111: =IF(VLOOKUP(AF111,Group,7,FALSE)="","",VLOOKUP(AF111,Group,7,FALSE)) ->  | AO111: X
AO112: X
D113: Notes: | E113: a) This format is going through a change of thickness. Packaging is changing from 15.28 SF/CTN to 22.93 SF/CTN as inventory | AO113: X
E114: with old packaging is depleted. Check with Customer Service to be sure which packaging amount you will be receiving. | AO114: X
E115: b) This format is going through a change of thickness. Packaging is changing from 17.22 SF/CTN to 25.83 SF/CTN as inventory | AO115: X
E116: with old packaging is depleted. Check with Customer Service to be sure which packaging amount you will be receiving. | AO116: X
AO117: X
C118: BLOCK - Glazed Porcelain & Glazed Ceramic Wall | R118: Item # Lookup: | S118: ROBL | AO118: X
AO119: X
D120: Colors: | E120: Acero Azul Blanco Gris Negro Verde | AO120: X
AO121: X
B122: Field Tile | D122: Floor: | E122: 4" x 24" | G122: Field | K122: Matte | P122: 9.39 SF/CTN | S122: =IF(Suggested="Yes",AA122,AG122) -> 11.25 | T122: SF | U122: =+Instructions!$B$3 -> G | W122: =+Instructions!$C$22 -> 0 | X122: =ROUND($AA122*(1-W122)+0.004999,2) -> 11.25 | AA122: 11.25 | AB122: =+W122 -> 0 | AC122: =+X122 -> 11.25 | AD122: =(AG122-AC122)/AG122 -> 0 | AF122: 1 | AG122: =SUM(AJ122:AL122)+AE122 -> 11.25 | AJ122: =ROUND(AC122/(1-VLOOKUP(AF122,Group,2,FALSE)),2) -> 11.25 | AK122: =IF(VLOOKUP(AF122,Group,5,FALSE)="YES",VLOOKUP(ROUND(ROUND(AJ122,1)-AJ122,2),Round,2,FALSE)+VLOOKUP(AF122,Group,6,FALSE),0) -> 0 | AL122: =IF(VLOOKUP(AF122,Group,7,FALSE)="",0,ROUND(AJ122-0.04999,1)-AJ122+AM122) -> 0 | AM122: =IF(VLOOKUP(AF122,Group,7,FALSE)="","",VLOOKUP(AF122,Group,7,FALSE)) ->  | AO122: X
B123: Field Tile | E123: 5" x 6" Hexagon | G123: Field | K123: Matte | P123: 3.55 SF/CTN | S123: =IF(Suggested="Yes",AA123,AG123) -> 11.4 | T123: SF | U123: =+Instructions!$B$3 -> G | W123: =+Instructions!$C$22 -> 0 | X123: =ROUND($AA123*(1-W123)+0.004999,2) -> 11.4 | AA123: 11.4 | AB123: =+W123 -> 0 | AC123: =+X123 -> 11.4 | AD123: =(AG123-AC123)/AG123 -> 0 | AF123: 1 | AG123: =SUM(AJ123:AL123)+AE123 -> 11.4 | AJ123: =ROUND(AC123/(1-VLOOKUP(AF123,Group,2,FALSE)),2) -> 11.4 | AK123: =IF(VLOOKUP(AF123,Group,5,FALSE)="YES",VLOOKUP(ROUND(ROUND(AJ123,1)-AJ123,2),Round,2,FALSE)+VLOOKUP(AF123,Group,6,FALSE),0) -> 0 | AL123: =IF(VLOOKUP(AF123,Group,7,FALSE)="",0,ROUND(AJ123-0.04999,1)-AJ123+AM123) -> 0 | AM123: =IF(VLOOKUP(AF123,Group,7,FALSE)="","",VLOOKUP(AF123,Group,7,FALSE)) ->  | AO123: X
AO124: X
B125: Field Tile | D125: Wall: | E125: 2" x 10" | G125: Field | K125: Bright | P125: 5.42 SF/CTN | S125: =IF(Suggested="Yes",AA125,AG125) -> 9.85 | T125: SF | U125: =+Instructions!$B$3 -> G | W125: =+Instructions!$C$22 -> 0 | X125: =ROUND($AA125*(1-W125)+0.004999,2) -> 9.85 | AA125: 9.85 | AB125: =+W125 -> 0 | AC125: =+X125 -> 9.85 | AD125: =(AG125-AC125)/AG125 -> 0 | AF125: 1 | AG125: =SUM(AJ125:AL125)+AE125 -> 9.85 | AJ125: =ROUND(AC125/(1-VLOOKUP(AF125,Group,2,FALSE)),2) -> 9.85 | AK125: =IF(VLOOKUP(AF125,Group,5,FALSE)="YES",VLOOKUP(ROUND(ROUND(AJ125,1)-AJ125,2),Round,2,FALSE)+VLOOKUP(AF125,Group,6,FALSE),0) -> 0 | AL125: =IF(VLOOKUP(AF125,Group,7,FALSE)="",0,ROUND(AJ125-0.04999,1)-AJ125+AM125) -> 0 | AM125: =IF(VLOOKUP(AF125,Group,7,FALSE)="","",VLOOKUP(AF125,Group,7,FALSE)) ->  | AO125: X
B126: Field Tile | E126: 2" x 10" | G126: Field - Arrow | K126: Bright | P126: 5.38 SF/CTN | S126: =IF(Suggested="Yes",AA126,AG126) -> 11 | T126: SF | U126: =+Instructions!$B$3 -> G | W126: =+Instructions!$C$22 -> 0 | X126: =ROUND($AA126*(1-W126)+0.004999,2) -> 11 | AA126: 11 | AB126: =+W126 -> 0 | AC126: =+X126 -> 11 | AD126: =(AG126-AC126)/AG126 -> 0 | AF126: 1 | AG126: =SUM(AJ126:AL126)+AE126 -> 11 | AJ126: =ROUND(AC126/(1-VLOOKUP(AF126,Group,2,FALSE)),2) -> 11 | AK126: =IF(VLOOKUP(AF126,Group,5,FALSE)="YES",VLOOKUP(ROUND(ROUND(AJ126,1)-AJ126,2),Round,2,FALSE)+VLOOKUP(AF126,Group,6,FALSE),0) -> 0 | AL126: =IF(VLOOKUP(AF126,Group,7,FALSE)="",0,ROUND(AJ126-0.04999,1)-AJ126+AM126) -> 0 | AM126: =IF(VLOOKUP(AF126,Group,7,FALSE)="","",VLOOKUP(AF126,Group,7,FALSE)) ->  | AO126: X
AO127: X
B128: Trim | E128: 2" x 10" | G128: Bullnose | K128: Bright | S128: =IF(Suggested="Yes",AA128,AG128) -> 9.25 | T128: EA | U128: =+Instructions!$B$3 -> G | W128: =+Instructions!$C$22 -> 0 | X128: =ROUND($AA128*(1-W128)+0.004999,2) -> 9.25 | AA128: 9.25 | AB128: =+W128 -> 0 | AC128: =+X128 -> 9.25 | AD128: =(AG128-AC128)/AG128 -> 0 | AF128: 2 | AG128: =SUM(AJ128:AL128)+AE128 -> 9.25 | AJ128: =ROUND(AC128/(1-VLOOKUP(AF128,Group,2,FALSE)),2) -> 9.25 | AK128: =IF(VLOOKUP(AF128,Group,5,FALSE)="YES",VLOOKUP(ROUND(ROUND(AJ128,1)-AJ128,2),Round,2,FALSE)+VLOOKUP(AF128,Group,6,FALSE),0) -> 0 | AL128: =IF(VLOOKUP(AF128,Group,7,FALSE)="",0,ROUND(AJ128-0.04999,1)-AJ128+AM128) -> 0 | AM128: =IF(VLOOKUP(AF128,Group,7,FALSE)="","",VLOOKUP(AF128,Group,7,FALSE)) ->  | AO128: X
AO129: X
B130: Field Tile | E130: 2" x 10" | G130: Field | K130: Matte | P130: 5.42 SF/CTN | S130: =IF(Suggested="Yes",AA130,AG130) -> 9.85 | T130: SF | U130: =+Instructions!$B$3 -> G | W130: =+Instructions!$C$22 -> 0 | X130: =ROUND($AA130*(1-W130)+0.004999,2) -> 9.85 | AA130: 9.85 | AB130: =+W130 -> 0 | AC130: =+X130 -> 9.85 | AD130: =(AG130-AC130)/AG130 -> 0 | AF130: 1 | AG130: =SUM(AJ130:AL130)+AE130 -> 9.85 | AJ130: =ROUND(AC130/(1-VLOOKUP(AF130,Group,2,FALSE)),2) -> 9.85 | AK130: =IF(VLOOKUP(AF130,Group,5,FALSE)="YES",VLOOKUP(ROUND(ROUND(AJ130,1)-AJ130,2),Round,2,FALSE)+VLOOKUP(AF130,Group,6,FALSE),0) -> 0 | AL130: =IF(VLOOKUP(AF130,Group,7,FALSE)="",0,ROUND(AJ130-0.04999,1)-AJ130+AM130) -> 0 | AM130: =IF(VLOOKUP(AF130,Group,7,FALSE)="","",VLOOKUP(AF130,Group,7,FALSE)) ->  | AO130: X
B131: Field Tile | E131: 2" x 10" | G131: Field - Arrow | K131: Matte | P131: 5.38 SF/CTN | S131: =IF(Suggested="Yes",AA131,AG131) -> 11 | T131: SF | U131: =+Instructions!$B$3 -> G | W131: =+Instructions!$C$22 -> 0 | X131: =ROUND($AA131*(1-W131)+0.004999,2) -> 11 | AA131: 11 | AB131: =+W131 -> 0 | AC131: =+X131 -> 11 | AD131: =(AG131-AC131)/AG131 -> 0 | AF131: 1 | AG131: =SUM(AJ131:AL131)+AE131 -> 11 | AJ131: =ROUND(AC131/(1-VLOOKUP(AF131,Group,2,FALSE)),2) -> 11 | AK131: =IF(VLOOKUP(AF131,Group,5,FALSE)="YES",VLOOKUP(ROUND(ROUND(AJ131,1)-AJ131,2),Round,2,FALSE)+VLOOKUP(AF131,Group,6,FALSE),0) -> 0 | AL131: =IF(VLOOKUP(AF131,Group,7,FALSE)="",0,ROUND(AJ131-0.04999,1)-AJ131+AM131) -> 0 | AM131: =IF(VLOOKUP(AF131,Group,7,FALSE)="","",VLOOKUP(AF131,Group,7,FALSE)) ->  | AO131: X
AO132: X
B133: Trim | E133: 2" x 10" | G133: Bullnose | K133: Matte | S133: =IF(Suggested="Yes",AA133,AG133) -> 9.25 | T133: EA | U133: =+Instructions!$B$3 -> G | W133: =+Instructions!$C$22 -> 0 | X133: =ROUND($AA133*(1-W133)+0.004999,2) -> 9.25 | AA133: 9.25 | AB133: =+W133 -> 0 | AC133: =+X133 -> 9.25 | AD133: =(AG133-AC133)/AG133 -> 0 | AF133: 2 | AG133: =SUM(AJ133:AL133)+AE133 -> 9.25 | AJ133: =ROUND(AC133/(1-VLOOKUP(AF133,Group,2,FALSE)),2) -> 9.25 | AK133: =IF(VLOOKUP(AF133,Group,5,FALSE)="YES",VLOOKUP(ROUND(ROUND(AJ133,1)-AJ133,2),Round,2,FALSE)+VLOOKUP(AF133,Group,6,FALSE),0) -> 0 | AL133: =IF(VLOOKUP(AF133,Group,7,FALSE)="",0,ROUND(AJ133-0.04999,1)-AJ133+AM133) -> 0 | AM133: =IF(VLOOKUP(AF133,Group,7,FALSE)="","",VLOOKUP(AF133,Group,7,FALSE)) ->  | AO133: X
AO134: X
C135: BOHEME - Glazed Porcelain | R135: Item # Lookup: | S135: ROBO | AO135: X
AO136: X
D137: Colors: | E137: Ivory Natural Walnut White | AO137: X
AO138: X
B139: Field Tile | E139: 8" x 35" | G139: Field | K139: Unpolished | P139: 17.52 SF/CTN | S139: =IF(Suggested="Yes",AA139,AG139) -> 4.75 | T139: SF | U139: =+Instructions!$B$3 -> G | W139: =+Instructions!$C$22 -> 0 | X139: =ROUND($AA139*(1-W139)+0.004999,2) -> 4.75 | AA139: 4.75 | AB139: =+W139 -> 0 | AC139: =+X139 -> 4.75 | AD139: =(AG139-AC139)/AG139 -> 0 | AF139: 1 | AG139: =SUM(AJ139:AL139)+AE139 -> 4.75 | AJ139: =ROUND(AC139/(1-VLOOKUP(AF139,Group,2,FALSE)),2) -> 4.75 | AK139: =IF(VLOOKUP(AF139,Group,5,FALSE)="YES",VLOOKUP(ROUND(ROUND(AJ139,1)-AJ139,2),Round,2,FALSE)+VLOOKUP(AF139,Group,6,FALSE),0) -> 0 | AL139: =IF(VLOOKUP(AF139,Group,7,FALSE)="",0,ROUND(AJ139-0.04999,1)-AJ139+AM139) -> 0 | AM139: =IF(VLOOKUP(AF139,Group,7,FALSE)="","",VLOOKUP(AF139,Group,7,FALSE)) ->  | AO139: X
AO140: X
C141: BORNEO CHEVRON - Glazed Porcelain | R141: Item # Lookup: | S141: ROBC | AO141: X
AO142: X
D143: Color: | E143: Fresno | AO143: X
AO144: X
B145: Field Tile | E145: 3.40" x 17.30" | G145: Field - Chevron | P145: 4.03 SF/CTN | R145: a | S145: =IF(Suggested="Yes",AA145,AG145) -> 13.25 | T145: SF | U145: =+Instructions!$B$3 -> G | W145: =+Instructions!$C$22 -> 0 | X145: =ROUND($AA145*(1-W145)+0.004999,2) -> 13.25 | AA145: 13.25 | AB145: =+W145 -> 0 | AC145: =+X145 -> 13.25 | AD145: =(AG145-AC145)/AG145 -> 0 | AF145: 1 | AG145: =SUM(AJ145:AL145)+AE145 -> 13.25 | AJ145: =ROUND(AC145/(1-VLOOKUP(AF145,Group,2,FALSE)),2) -> 13.25 | AK145: =IF(VLOOKUP(AF145,Group,5,FALSE)="YES",VLOOKUP(ROUND(ROUND(AJ145,1)-AJ145,2),Round,2,FALSE)+VLOOKUP(AF145,Group,6,FALSE),0) -> 0 | AL145: =IF(VLOOKUP(AF145,Group,7,FALSE)="",0,ROUND(AJ145-0.04999,1)-AJ145+AM145) -> 0 | AM145: =IF(VLOOKUP(AF145,Group,7,FALSE)="","",VLOOKUP(AF145,Group,7,FALSE)) ->  | AO145: X
AO146: X
D147: Note: | E147: a) Each box contains 5 pieces of Face A and 5 pieces of Face B. | AO147: X
AO148: X
C149: BRICKELL - Glazed Ceramic Wall | R149: Item # Lookup: | S149: ROBR | AO149: X
AO150: X
D151: Colors: | E151: Antracita Blanco Burnt Gris Taupe | AO151: X
AO152: X
B153: Field Tile | E153: 3" x 12" | G153: Field | P153: 12.64 SF/CTN | Q153: Stock | S153: =IF(Suggested="Yes",AA153,AG153) -> 6.35 | T153: SF | U153: =+Instructions!$B$3 -> G | W153: =+Instructions!$C$22 -> 0 | X153: =ROUND($AA153*(1-W153)+0.004999,2) -> 6.35 | AA153: 6.35 | AB153: =+W153 -> 0 | AC153: =+X153 -> 6.35 | AD153: =(AG153-AC153)/AG153 -> 0 | AF153: 1 | AG153: =SUM(AJ153:AL153)+AE153 -> 6.35 | AJ153: =ROUND(AC153/(1-VLOOKUP(AF153,Group,2,FALSE)),2) -> 6.35 | AK153: =IF(VLOOKUP(AF153,Group,5,FALSE)="YES",VLOOKUP(ROUND(ROUND(AJ153,1)-AJ153,2),Round,2,FALSE)+VLOOKUP(AF153,Group,6,FALSE),0) -> 0 | AL153: =IF(VLOOKUP(AF153,Group,7,FALSE)="",0,ROUND(AJ153-0.04999,1)-AJ153+AM153) -> 0 | AM153: =IF(VLOOKUP(AF153,Group,7,FALSE)="","",VLOOKUP(AF153,Group,7,FALSE)) ->  | AO153: X
AO154: X
B155: Trim | E155: 3" x 12" | G155: S43C9 | I155: Bullnose | S155: =IF(Suggested="Yes",AA155,AG155) -> 12.2 | T155: EA | U155: =+Instructions!$B$3 -> G | W155: =+Instructions!$C$22 -> 0 | X155: =ROUND($AA155*(1-W155)+0.004999,2) -> 12.2 | AA155: 12.2 | AB155: =+W155 -> 0 | AC155: =+X155 -> 12.2 | AD155: =(AG155-AC155)/AG155 -> 0 | AF155: 2 | AG155: =SUM(AJ155:AL155)+AE155 -> 12.2 | AJ155: =ROUND(AC155/(1-VLOOKUP(AF155,Group,2,FALSE)),2) -> 12.2 | AK155: =IF(VLOOKUP(AF155,Group,5,FALSE)="YES",VLOOKUP(ROUND(ROUND(AJ155,1)-AJ155,2),Round,2,FALSE)+VLOOKUP(AF155,Group,6,FALSE),0) -> 0 | AL155: =IF(VLOOKUP(AF155,Group,7,FALSE)="",0,ROUND(AJ155-0.04999,1)-AJ155+AM155) -> 0 | AM155: =IF(VLOOKUP(AF155,Group,7,FALSE)="","",VLOOKUP(AF155,Group,7,FALSE)) ->  | AO155: X
AO156: X
C157: CALACATTA GOLD - Glazed & Polished Porcelain | R157: Item # Lookup: | S157: ROCG | AO157: X
AO158: X
D159: Color: | E159: Calacatta Gold | AO159: X
AO160: X
B161: Field Tile | D161: Floor: | E161: 12" x 24" | G161: Field | I161: Rectified | K161: Polished | P161: 18.84 SF/CTN | S161: =IF(Suggested="Yes",AA161,AG161) -> 6.65 | T161: SF | U161: =+Instructions!$B$3 -> G | W161: =+Instructions!$C$22 -> 0 | X161: =ROUND($AA161*(1-W161)+0.004999,2) -> 6.65 | AA161: 6.65 | AB161: =+W161 -> 0 | AC161: =+X161 -> 6.65 | AD161: =(AG161-AC161)/AG161 -> 0 | AF161: 1 | AG161: =SUM(AJ161:AL161)+AE161 -> 6.65 | AJ161: =ROUND(AC161/(1-VLOOKUP(AF161,Group,2,FALSE)),2) -> 6.65 | AK161: =IF(VLOOKUP(AF161,Group,5,FALSE)="YES",VLOOKUP(ROUND(ROUND(AJ161,1)-AJ161,2),Round,2,FALSE)+VLOOKUP(AF161,Group,6,FALSE),0) -> 0 | AL161: =IF(VLOOKUP(AF161,Group,7,FALSE)="",0,ROUND(AJ161-0.04999,1)-AJ161+AM161) -> 0 | AM161: =IF(VLOOKUP(AF161,Group,7,FALSE)="","",VLOOKUP(AF161,Group,7,FALSE)) ->  | AO161: X
B162: Field Tile | E162: 24" x 48" | G162: Field | I162: Rectified | K162: Polished | P162: 15.28 SF/CTN | R162: a | S162: =IF(Suggested="Yes",AA162,AG162) -> 8.15 | T162: SF | U162: =+Instructions!$B$3 -> G | W162: =+Instructions!$C$22 -> 0 | X162: =ROUND($AA162*(1-W162)+0.004999,2) -> 8.15 | AA162: 8.15 | AB162: =+W162 -> 0 | AC162: =+X162 -> 8.15 | AD162: =(AG162-AC162)/AG162 -> 0 | AF162: 1 | AG162: =SUM(AJ162:AL162)+AE162 -> 8.15 | AJ162: =ROUND(AC162/(1-VLOOKUP(AF162,Group,2,FALSE)),2) -> 8.15 | AK162: =IF(VLOOKUP(AF162,Group,5,FALSE)="YES",VLOOKUP(ROUND(ROUND(AJ162,1)-AJ162,2),Round,2,FALSE)+VLOOKUP(AF162,Group,6,FALSE),0) -> 0 | AL162: =IF(VLOOKUP(AF162,Group,7,FALSE)="",0,ROUND(AJ162-0.04999,1)-AJ162+AM162) -> 0 | AM162: =IF(VLOOKUP(AF162,Group,7,FALSE)="","",VLOOKUP(AF162,Group,7,FALSE)) ->  | AO162: X
AO163: X
B164: Field Tile | E164: 12" x 24" | G164: Field | K164: Unpolished | P164: 20.34 SF/CTN | S164: =IF(Suggested="Yes",AA164,AG164) -> 5.15 | T164: SF | U164: =+Instructions!$B$3 -> G | W164: =+Instructions!$C$22 -> 0 | X164: =ROUND($AA164*(1-W164)+0.004999,2) -> 5.15 | AA164: 5.15 | AB164: =+W164 -> 0 | AC164: =+X164 -> 5.15 | AD164: =(AG164-AC164)/AG164 -> 0 | AF164: 1 | AG164: =SUM(AJ164:AL164)+AE164 -> 5.15 | AJ164: =ROUND(AC164/(1-VLOOKUP(AF164,Group,2,FALSE)),2) -> 5.15 | AK164: =IF(VLOOKUP(AF164,Group,5,FALSE)="YES",VLOOKUP(ROUND(ROUND(AJ164,1)-AJ164,2),Round,2,FALSE)+VLOOKUP(AF164,Group,6,FALSE),0) -> 0 | AL164: =IF(VLOOKUP(AF164,Group,7,FALSE)="",0,ROUND(AJ164-0.04999,1)-AJ164+AM164) -> 0 | AM164: =IF(VLOOKUP(AF164,Group,7,FALSE)="","",VLOOKUP(AF164,Group,7,FALSE)) ->  | AO164: X
B165: Field Tile | E165: 24" x 48" | G165: Field | I165: Rectified | K165: Unpolished | P165: 15.28 SF/CTN | R165: a | S165: =IF(Suggested="Yes",AA165,AG165) -> 7 | T165: SF | U165: =+Instructions!$B$3 -> G | W165: =+Instructions!$C$22 -> 0 | X165: =ROUND($AA165*(1-W165)+0.004999,2) -> 7 | AA165: 7 | AB165: =+W165 -> 0 | AC165: =+X165 -> 7 | AD165: =(AG165-AC165)/AG165 -> 0 | AF165: 1 | AG165: =SUM(AJ165:AL165)+AE165 -> 7 | AJ165: =ROUND(AC165/(1-VLOOKUP(AF165,Group,2,FALSE)),2) -> 7 | AK165: =IF(VLOOKUP(AF165,Group,5,FALSE)="YES",VLOOKUP(ROUND(ROUND(AJ165,1)-AJ165,2),Round,2,FALSE)+VLOOKUP(AF165,Group,6,FALSE),0) -> 0 | AL165: =IF(VLOOKUP(AF165,Group,7,FALSE)="",0,ROUND(AJ165-0.04999,1)-AJ165+AM165) -> 0 | AM165: =IF(VLOOKUP(AF165,Group,7,FALSE)="","",VLOOKUP(AF165,Group,7,FALSE)) ->  | AO165: X
AO166: X
B167: Trim | E167: 3" x 12" | G167: Bullnose | K167: Unpolished | S167: =IF(Suggested="Yes",AA167,AG167) -> 5.95 | T167: EA | U167: =+Instructions!$B$3 -> G | W167: =+Instructions!$C$22 -> 0 | X167: =ROUND($AA167*(1-W167)+0.004999,2) -> 5.95 | AA167: 5.95 | AB167: =+W167 -> 0 | AC167: =+X167 -> 5.95 | AD167: =(AG167-AC167)/AG167 -> 0 | AF167: 2 | AG167: =SUM(AJ167:AL167)+AE167 -> 5.95 | AJ167: =ROUND(AC167/(1-VLOOKUP(AF167,Group,2,FALSE)),2) -> 5.95 | AK167: =IF(VLOOKUP(AF167,Group,5,FALSE)="YES",VLOOKUP(ROUND(ROUND(AJ167,1)-AJ167,2),Round,2,FALSE)+VLOOKUP(AF167,Group,6,FALSE),0) -> 0 | AL167: =IF(VLOOKUP(AF167,Group,7,FALSE)="",0,ROUND(AJ167-0.04999,1)-AJ167+AM167) -> 0 | AM167: =IF(VLOOKUP(AF167,Group,7,FALSE)="","",VLOOKUP(AF167,Group,7,FALSE)) ->  | AO167: X
AO168: X
B169: Decos | E169: 13" x 13" | G169: Mosaic | I169: 2" x 2" (Mesh-Mounted) | L169: Unpolished | S169: =IF(Suggested="Yes",AA169,AG169) -> 22.8 | T169: EA | U169: =+Instructions!$B$3 -> G | W169: =+Instructions!$C$22 -> 0 | X169: =ROUND($AA169*(1-W169)+0.004999,2) -> 22.8 | AA169: 22.8 | AB169: =+W169 -> 0 | AC169: =+X169 -> 22.8 | AD169: =(AG169-AC169)/AG169 -> 0 | AF169: 3 | AG169: =SUM(AJ169:AL169)+AE169 -> 22.8 | AJ169: =ROUND(AC169/(1-VLOOKUP(AF169,Group,2,FALSE)),2) -> 22.8 | AK169: =IF(VLOOKUP(AF169,Group,5,FALSE)="YES",VLOOKUP(ROUND(ROUND(AJ169,1)-AJ169,2),Round,2,FALSE)+VLOOKUP(AF169,Group,6,FALSE),0) -> 0 | AL169: =IF(VLOOKUP(AF169,Group,7,FALSE)="",0,ROUND(AJ169-0.04999,1)-AJ169+AM169) -> 0 | AM169: =IF(VLOOKUP(AF169,Group,7,FALSE)="","",VLOOKUP(AF169,Group,7,FALSE)) ->  | AO169: X
AO170: X
B171: Field Tile | D171: Wall: | E171: 6" x 18" | G171: Field | K171: Bright | P171: 11.95 SF/CTN | S171: =IF(Suggested="Yes",AA171,AG171) -> 5.3 | T171: SF | U171: =+Instructions!$B$3 -> G | W171: =+Instructions!$C$22 -> 0 | X171: =ROUND($AA171*(1-W171)+0.004999,2) -> 5.3 | AA171: 5.3 | AB171: =+W171 -> 0 | AC171: =+X171 -> 5.3 | AD171: =(AG171-AC171)/AG171 -> 0 | AF171: 1 | AG171: =SUM(AJ171:AL171)+AE171 -> 5.3 | AJ171: =ROUND(AC171/(1-VLOOKUP(AF171,Group,2,FALSE)),2) -> 5.3 | AK171: =IF(VLOOKUP(AF171,Group,5,FALSE)="YES",VLOOKUP(ROUND(ROUND(AJ171,1)-AJ171,2),Round,2,FALSE)+VLOOKUP(AF171,Group,6,FALSE),0) -> 0 | AL171: =IF(VLOOKUP(AF171,Group,7,FALSE)="",0,ROUND(AJ171-0.04999,1)-AJ171+AM171) -> 0 | AM171: =IF(VLOOKUP(AF171,Group,7,FALSE)="","",VLOOKUP(AF171,Group,7,FALSE)) ->  | AO171: X
AO172: X
B173: Trim | E173: 6" x 18" | G173: Bullnose | K173: Bright | S173: =IF(Suggested="Yes",AA173,AG173) -> 9.55 | T173: EA | U173: =+Instructions!$B$3 -> G | W173: =+Instructions!$C$22 -> 0 | X173: =ROUND($AA173*(1-W173)+0.004999,2) -> 9.55 | AA173: 9.55 | AB173: =+W173 -> 0 | AC173: =+X173 -> 9.55 | AD173: =(AG173-AC173)/AG173 -> 0 | AF173: 2 | AG173: =SUM(AJ173:AL173)+AE173 -> 9.55 | AJ173: =ROUND(AC173/(1-VLOOKUP(AF173,Group,2,FALSE)),2) -> 9.55 | AK173: =IF(VLOOKUP(AF173,Group,5,FALSE)="YES",VLOOKUP(ROUND(ROUND(AJ173,1)-AJ173,2),Round,2,FALSE)+VLOOKUP(AF173,Group,6,FALSE),0) -> 0 | AL173: =IF(VLOOKUP(AF173,Group,7,FALSE)="",0,ROUND(AJ173-0.04999,1)-AJ173+AM173) -> 0 | AM173: =IF(VLOOKUP(AF173,Group,7,FALSE)="","",VLOOKUP(AF173,Group,7,FALSE)) ->  | AO173: X
AO174: X
D175: Notes: | E175: a) This format is going through a change of thickness. Packaging is changing from 15.28 SF/CTN to 22.93 SF/CTN as inventory | AO175: X
E176: with old packaging is depleted. Check with Customer Service to be sure which packaging amount you will be receiving. | AO176: X
AO177: X
C178: CALACATTA WHITE - Glazed Porcelain | R178: Item # Lookup: | S178: ROCW | AO178: X
AO179: X
D180: Color: | E180: Calacatta White | AO180: X
AO181: X
B182: Field Tile | E182: 12" x 24" | G182: Field | K182: Matte | P182: 17.87 SF/CTN | S182: =IF(Suggested="Yes",AA182,AG182) -> 5.35 | T182: SF | U182: =+Instructions!$B$3 -> G | W182: =+Instructions!$C$22 -> 0 | X182: =ROUND($AA182*(1-W182)+0.004999,2) -> 5.35 | AA182: 5.35 | AB182: =+W182 -> 0 | AC182: =+X182 -> 5.35 | AD182: =(AG182-AC182)/AG182 -> 0 | AF182: 1 | AG182: =SUM(AJ182:AL182)+AE182 -> 5.35 | AJ182: =ROUND(AC182/(1-VLOOKUP(AF182,Group,2,FALSE)),2) -> 5.35 | AK182: =IF(VLOOKUP(AF182,Group,5,FALSE)="YES",VLOOKUP(ROUND(ROUND(AJ182,1)-AJ182,2),Round,2,FALSE)+VLOOKUP(AF182,Group,6,FALSE),0) -> 0 | AL182: =IF(VLOOKUP(AF182,Group,7,FALSE)="",0,ROUND(AJ182-0.04999,1)-AJ182+AM182) -> 0 | AM182: =IF(VLOOKUP(AF182,Group,7,FALSE)="","",VLOOKUP(AF182,Group,7,FALSE)) ->  | AO182: X
AO183: X
C184: CARRARA - Glazed Porcelain | R184: Item # Lookup: | S184: ROCA | AO184: X
AO185: X
D186: Color: | E186: Carrara White | AO186: X
AO187: X
B188: Field Tile | E188: 12" x 24" | G188: Field | K188: Matte | P188: 17.87 SF/CTN | S188: =IF(Suggested="Yes",AA188,AG188) -> 5.35 | T188: SF | U188: =+Instructions!$B$3 -> G | W188: =+Instructions!$C$22 -> 0 | X188: =ROUND($AA188*(1-W188)+0.004999,2) -> 5.35 | AA188: 5.35 | AB188: =+W188 -> 0 | AC188: =+X188 -> 5.35 | AD188: =(AG188-AC188)/AG188 -> 0 | AF188: 1 | AG188: =SUM(AJ188:AL188)+AE188 -> 5.35 | AJ188: =ROUND(AC188/(1-VLOOKUP(AF188,Group,2,FALSE)),2) -> 5.35 | AK188: =IF(VLOOKUP(AF188,Group,5,FALSE)="YES",VLOOKUP(ROUND(ROUND(AJ188,1)-AJ188,2),Round,2,FALSE)+VLOOKUP(AF188,Group,6,FALSE),0) -> 0 | AL188: =IF(VLOOKUP(AF188,Group,7,FALSE)="",0,ROUND(AJ188-0.04999,1)-AJ188+AM188) -> 0 | AM188: =IF(VLOOKUP(AF188,Group,7,FALSE)="","",VLOOKUP(AF188,Group,7,FALSE)) ->  | AO188: X
AO189: X
C190: CARVE - Glazed Porcelain | R190: Item # Lookup: | S190: ROCV | AO190: X
AO191: X
D192: Color: | E192: Carve Steel | AO192: X
AO193: X
B194: Field Tile | E194: 12" x 24" | G194: Field | I194: Rectified | P194: 19.38 SF/CTN | S194: =IF(Suggested="Yes",AA194,AG194) -> 12.5 | T194: SF | U194: =+Instructions!$B$3 -> G | W194: =+Instructions!$C$22 -> 0 | X194: =ROUND($AA194*(1-W194)+0.004999,2) -> 12.5 | AA194: 12.5 | AB194: =+W194 -> 0 | AC194: =+X194 -> 12.5 | AD194: =(AG194-AC194)/AG194 -> 0 | AF194: 1 | AG194: =SUM(AJ194:AL194)+AE194 -> 12.5 | AJ194: =ROUND(AC194/(1-VLOOKUP(AF194,Group,2,FALSE)),2) -> 12.5 | AK194: =IF(VLOOKUP(AF194,Group,5,FALSE)="YES",VLOOKUP(ROUND(ROUND(AJ194,1)-AJ194,2),Round,2,FALSE)+VLOOKUP(AF194,Group,6,FALSE),0) -> 0 | AL194: =IF(VLOOKUP(AF194,Group,7,FALSE)="",0,ROUND(AJ194-0.04999,1)-AJ194+AM194) -> 0 | AM194: =IF(VLOOKUP(AF194,Group,7,FALSE)="","",VLOOKUP(AF194,Group,7,FALSE)) ->  | AO194: X
AO195: X
C196: CASABLANCA - Glazed Porcelain | R196: Item # Lookup: | S196: ROCB | AO196: X
AO197: X
D198: Colors: | E198: Solid Black Solid Gray Solid White | AO198: X
AO199: X
B200: Field Tile | E200: 8" x 8" | G200: Field | P200: 12.70 SF/CTN | R200: a | S200: =IF(Suggested="Yes",AA200,AG200) -> 6.25 | T200: SF | U200: =+Instructions!$B$3 -> G | W200: =+Instructions!$C$22 -> 0 | X200: =ROUND($AA200*(1-W200)+0.004999,2) -> 6.25 | AA200: 6.25 | AB200: =+W200 -> 0 | AC200: =+X200 -> 6.25 | AD200: =(AG200-AC200)/AG200 -> 0 | AF200: 1 | AG200: =SUM(AJ200:AL200)+AE200 -> 6.25 | AJ200: =ROUND(AC200/(1-VLOOKUP(AF200,Group,2,FALSE)),2) -> 6.25 | AK200: =IF(VLOOKUP(AF200,Group,5,FALSE)="YES",VLOOKUP(ROUND(ROUND(AJ200,1)-AJ200,2),Round,2,FALSE)+VLOOKUP(AF200,Group,6,FALSE),0) -> 0 | AL200: =IF(VLOOKUP(AF200,Group,7,FALSE)="",0,ROUND(AJ200-0.04999,1)-AJ200+AM200) -> 0 | AM200: =IF(VLOOKUP(AF200,Group,7,FALSE)="","",VLOOKUP(AF200,Group,7,FALSE)) ->  | AO200: X
... 1281 more rows

Sheet Websites
A1: Easy Access Website links
A3: ConestogaTile's Website | B3: www.conestogatile.com
A5: Manufacturer's Home Page | B5: http://www.rocatilegroup.com/
A8: Product | B8: Direct Website Link
A9: Abaco | B9: https://rocatileusa.com/collections/abaco/
A10: Abbey | B10: http://rocatileusa.com/collections/abbey/
A11: Alaska | B11: https://rocatileusa.com/collections/alaska/
A12: Artesano | B12: https://rocatileusa.com/collections/artesano/
A13: Aura | B13: https://rocatileusa.com/collections/aura
A14: Avalon | B14: https://rocatileusa.com/collections/avalon
A15: Bar Tile | B15: https://rocatileusa.com/collections/bartile/
A16: Bianco Venatino | B16: http://rocatilegroup.com/collections/bianco-venatino/
A17: Block | B17: https://rocatileusa.com/collections/block/
A18: Boheme | B18: https://rocatileusa.com/collections/boheme
A19: Borneo Chevron | B19: http://rocatileusa.com/collections/borneo-chevron/
A20: Brickell | B20: http://rocatileusa.com/collections/brickell/
A21: Calacatta Gold | B21: https://rocatileusa.com/collections/calacata-gold/
A22: Calacatta White | B22: https://rocatileusa.com/collections/calacatta/
A23: Carrara | B23: https://rocatileusa.com/collections/carrara/
A24: Carve | B24: https://rocatileusa.com/collections/carve/
A25: Casablanca | B25: http://rocatileusa.com/collections/casablanca/
A26: CC Cosmos | B26: https://rocatileusa.com/collections/cc-cosmos/
A27: CC Frames | B27: https://rocatileusa.com/collections/cc-frames/
A28: CC Mosaics | B28: http://rocatilegroup.com/products/cc-porcelain-mosaics/
A29: CC Mosaics Plus+ | B29: http://rocatilegroup.com/products/cc-porcelain-mosaics-plus/
A30: CC Porcelain | B30: http://rocatilegroup.com/products/porcelain-mosaics-cc/
A31: CC Textures | B31: http://rocatileusa.com/collections/cc-textures/
A32: Colonial | B32: https://rocatileusa.com/collections/colonial/
A33: Color Collection | B33: http://rocatilegroup.com/color-collection-solid-color-wall-tile/
A34: Crystal | B34: https://rocatileusa.com/collections/crystal/
A35: Decorative Accents | B35: http://rocatilegroup.com/products/decorative-accent-wall-tile/
A36: Dimensions | B36: https://rocatileusa.com/collections/dimensions/
A37: Downtown | B37: http://rocatilegroup.com/products/downtown-concrete-look-tile/
A38: Essence | B38: https://rocatileusa.com/essence/
A39: Everglade | B39: https://rocatileusa.com/collections/everglade/
A40: Feathers | B40: https://rocatileusa.com/collections/feathers/
A41: Flow | B41: http://rocatileusa.com/collections/flow/
A42: Groove | B42: https://rocatileusa.com/collections/groove
A43: Havana | B43: http://rocatilegroup.com/collections/havana/
A44: Jewels | B44: https://rocatileusa.dfsoft.mx/collections/jewels
A45: June | B45: https://rocatileusa.com/collections/june/
A46: Lassa | B46: https://rocatileusa.com/collections/lassa/
A47: Legend | B47: http://rocatilegroup.com/products/legend-stone-look-tile/
A48: Limestone | B48: https://rocatileusa.com/collections/limestone/
A49: Lithology Edition | B49: https://rocatileusa.com/category/floor-tile/lithology
A50: Liverpool | B50: https://rocatileusa.com/collections/liverpool/
A51: Magnolia | B51: http://rocatilegroup.com/products/marmi-traditional-look-tile/
A52: Maiolica | B52: http://rocatilegroup.com/maiolica-handmade-look-wall-tile-design-kitchen-bathroom/
A53: Maiolica Floor | B53: http://rocatileusa.com/collections/maiolica-floor/
A54: Marble Dolomita | B54: https://rocatileusa.com/collections/marble-dolomita
A55: Marble Lincoln | B55: https://rocatileusa.com/collections/marble-lincoln/
A56: Marble Platinum | B56: https://rocatileusa.com/collections/marble-platinum/
A57: Mayne | B57: https://rocatileusa.com/collections/mayne/
A58: Metals | B58: http://rocatileusa.com/collections/metals/
A59: Nolita | B59: http://rocatilegroup.com/collections/nolita/
A60: Nordico | B60: https://rocatileusa.com/collections/nordico/
A61: Olaria | B61: https://rocatileusa.com/collections/olaria/
A62: Old Fashioned | B62: https://rocatileusa.com/collections/old-fashioned/
A63: Ombre | B63: https://rocatileusa.com/collections/ombre/
A64: Onyx | B64: https://rocatileusa.com/collections/onyx/
A65: Pavers | B65: https://rocatileusa.com/collections/pavers/
A66: Piasentina | B66: http://rocatilegroup.com/collections/piasentina/
A67: Pigment | B67: https://rocatileusa.com/collections/pigment/
A68: Pine | B68: https://rocatileusa.com/collections/pine
A69: Port Noir | B69: https://rocatileusa.com/collections/port-noir
A70: Positano | B70: http://rocatilegroup.com/products/positano-stone-look-tile/
A71: Pro | B71: http://rocatileusa.com/collections/pro/
A72: Pro Max | B72: http://rocatileusa.com/collections/pro-max/
A73: Rock Art | B73: http://rocatilegroup.com/products/pure-solid-color-tile/
A74: Savoy | B74: https://rocatileusa.com/collections/savoy/
A75: Seattle | B75: https://rocatileusa.com/collections/seattle/
A76: Slabs | B76: https://rocatileusa.com/collections/slabs/
A77: St. Tropez | B77: https://rocatileusa.com/collections/st-tropez/
A78: Stardust | B78: https://rocatileusa.com/collections/stardust/
A79: Statuary | B79: http://rocatileusa.com/collections/statuary-marble-look-tile/
A80: Stone Basel | B80: https://rocatileusa.com/collections/stone-basel/
A81: Tegel | B81: https://rocatileusa.com/collections/tegel
A82: Terranova | B82: https://rocatileusa.com/collections/terranova/
A83: Tissue | B83: https://rocatileusa.com/collections/tissue/
A84: Trevi | B84: http://rocatileusa.com/collections/trevi/
A85: Tribe | B85: https://rocatileusa.com/collections/tribe/
A86: Unique Ground | B86: https://rocatileusa.com/collections/unique-ground/
A87: Venato | B87: https://rocatileusa.com/collections/venato/
A88: Wind | B88: https://rocatileusa.com/collections/wind/
A89: Zellige | B89: https://rocatileusa.com/collections/zellige/
A90: Zen | B90: https://rocatileusa.com/collections/zen/
A91: Zen Stone | B91: https://rocatileusa.com/collections/zen%20stone/

Sheet Changes
A1: Date
A2: Announced | B2: Series | C2: Description
A4: New Products
A5: 2008-02-01 | B5: ALCAZAR
A6: 2008-02-01 | B6: ARDESIA
A7: 2008-02-01 | B7: BELLATERRA
A8: 2008-09-03 | B8: ONDA
A9: 2009-04-08 | B9: DOT-MOUNTED MOSAICS
A10: 2010-01-22 | B10: Astral - Glazed Ceramic | C10: Coordinating field, decoratives & trims for Laufen Alcazar Series.
A11: 2010-03-22 | B11: Argos | C11: Unglazed Porcelain
A12: 2010-03-22 | B12: Java | C12: Glazed Ceramic
A13: 2010-03-22 | B13: Monte Bello | C13: Glazed Porcelain
A14: 2010-03-22 | B14: Nordico | C14: Glazed Ceramic
A15: 2010-03-22 | B15: Avila | C15: Through-Body Porcelain
A16: 2010-03-22 | B16: Coral | C16: Glass
A17: 2010-03-22 | B17: Rock & Rock: Montana | C17: Unglazed Porcelain
A18: 2010-03-22 | B18: Norway | C18: Through-Body Porcelain
A19: 2010-03-22 | B19: Stratos Orion | C19: Through-Body Double Load Porcelain
A20: 2010-03-22 | B20: Rock Art | C20: Natural Stone
A21: 2010-03-22 | B21: Rock & Rock: Shellstone | C21: Unglazed Porcelain
A22: 2010-03-22 | B22: Stratos Artic | C22: Through-Body Polished Porcelain
A23: 2010-03-22 | B23: Stratos Atlas | C23: Through-Body Polished Porcelain
A24: 2010-03-22 | B24: Siros | C24: Through-Body Polished Porcelain
A25: 2011-07-07 | B25: Equinox | C25: 3" x 6" & 10" x 13" Field Tiles, 3" x 10" Willow Listello, 3" x 6" & 3" x 10" Bullnose.
A26: 2011-07-07 | B26: FRESNO | C26: 12" x 12" Floor & 3" x 6" Wall Field Tile, also, 3" x 6" Wall Bullnose.
A27: 2011-07-07 | B27: Marlin | C27: Glazed Ceramic Floor & Wall
A28: 2011-07-07 | B28: Arles | C28: Glazed Porcelain
A29: 2011-07-07 | B29: Coral | C29: Added Beige-Olive Beroe 1" x 1" Multicolor Mosaic
A30: 2011-07-07 | B30: Lavagna | C30: Porcelain
A31: 2011-07-07 | B31: Packstone | C31: Porcelain
A32: 2011-07-07 | B32: STRATOS ARTIC | C32: added 12" x 24" Field Tile
A33: 2011-07-07 | B33: Stratos Orion | C33: 12" x 12" Field Tile & 3" x 12" Bullnose in both polished & unpolished, Taurus Mosaic.
A34: 2011-07-07 | B34: Tahiti | C34: Glazed Porcelain
A35: 2011-07-07 | B35: York | C35: Porcelain
A36: 2011-07-07 | B36: Norway | C36: Through-Body Porcelain
A37: 2011-07-07 | B37: Acadia | C37: Glazed Porcelain
A38: 2011-07-07 | B38: Astral - Glazed Ceramic | C38: Added 10"x13" Wall, 3"x10" Willow Listello, 2"x8" Vancouver Listello & 3"x10" B/N.
A39: 2011-07-07 | B39: Bengala | C39: Through-Body Porcelain
A40: 2011-07-07 | B40: Color Collection | C40: Added 4-1/4" x 10" field tile & 3" x 10" Bullnose in colors U081 White Ice & U281 White Ice. Also added 4-1/4" x 10" field tile in colors U761 Tender Grey (Bright), U261 Tender Grey (Matte), U785 Fawn (Bright), U285 Fawn (Matte), U789 Taupe (Bright), U289 Taupe (Matte), U796 Cocoa (Bright), U296 Cocoa (Matte) and U759 Black (Bright).
A41: 2011-07-07 | B41: Color Collection | C41: Added to color U759 Black Bright the following trims: S4269, SN4269, AT3401, STCL3401, STCR3401, AT3410, ATCL3410, ATCR3410, AT3610, ATCL3610, ATCR3610, A4200 & AN4200.
A42: 2011-07-07 | B42: Decorative Accents | C42: Re-designed and re-introduced back into offerings.
A43: 2011-07-07 | B43: Hampton | C43: Glazed Porcelain
A44: 2011-07-07 | B44: Portonovo | C44: Glazed Ceramic
B45: CC Porcelain | C45: (previously known as "Dot Mounted") 2" x 2" SC813 Cove Base Outside Corner added to line.
A46: 2012-01-27 | B46: Astral | C46: 24" x 24" field tile size added.
A47: 2012-01-27 | B47: Calacatta | C47: Glazed Porcelain Floor & Glazed Ceramic Wall
A48: 2012-01-27 | B48: Calypso | C48: Glazed Ceramic Wall
A49: 2012-01-27 | B49: Campania | C49: Glazed Porcelain Floor & Glazed Ceramic Wall
A50: 2012-01-27 | B50: Carrara | C50: Glazed Porcelain Floor & Glazed Ceramic Wall
A51: 2012-01-27 | B51: Classic | C51: (previously known as "Biltmore") Color Beige added to line as well as the field tile size 12" x 12".
A52: 2012-01-27 | B52: Coral | C52: 2" x 2" field in colors Beige and Olive added to line.
A53: 2012-01-27 | B53: Retro | C53: Glazed Ceramic Wall
A54: 2012-01-27 | B54: Shellstone | C54: Porcelain
A55: 2012-01-27 | B55: Stratos Artic | C55: 32" x 32" field tile size added.
A56: 2012-01-27 | B56: Terracotta | C56: Glazed Ceramic Wall
A57: 2012-01-27 | B57: Versailles | C57: Glazed Porcelain Floor & Glazed Ceramic Wall
A58: 2012-11-06 | B58: Bergen | C58: Glazed Porcelain
A59: 2012-11-06 | B59: Carrara HD | C59: Glazed Ceramic Floor & Wall
A60: 2012-11-06 | B60: CC Mosaics | C60: Glazed Mosaics
A61: 2012-11-06 | B61: CC Porcelain | C61: Colors U248 Camel and U289 Taupe added to line.
A62: 2012-11-06 | B62: Linen | C62: Glazed Porcelain
A63: 2012-11-06 | B63: Palazzo | C63: Glazed Porcelain Floor & Glazed Ceramic Wall
A64: 2013-01-30 | B64: Astral | C64: Added to line: 12" x 12" Multicolor Mosaic.
A65: 2013-01-30 | B65: Bath Accessories | C65: 4 Fixtures available in Snow White & Bone colors.
A66: 2013-01-30 | B66: Color Collection | C66: Added to line: 4-1/4" x 10" Beveled Edge field tile in color U081 White Ice. 4-1/4" x 10" field tile in color U739 Red Pepper & 3" x 10" Bullnose in colors U759 Black, U261 Tender Gray, U761 Tender Gray, U285 Fawn, U785 Fawn, U289 Taupe, U789 Taupe, U296 Cocoa and U796 Cocoa.
A67: 2013-01-30 | B67: Pietra Nero | C67: Porcelain
A68: 2013-01-30 | B68: Sapporo | C68: Porcelain
A69: 2013-01-30 | B69: Slates | C69: Glazed Porcelain
A70: 2013-01-30 | B70: Stratos Apolo | C70: Through-Body Polished Porcelain
A71: 2013-01-30 | B71: Stratos Atmosphere | C71: Porcelain
A72: 2013-01-30 | B72: Stratos Orion | C72: Added to line: 6" x 24" Field Tile in Unpolished & Polished surfaces in all colors. 6" x 12" Cove Base & 1" x 6" Cove Base Out Corner in Unpolished surface only in all colors.
A73: 2013-01-30 | B73: Titanium | C73: Porcelain
A74: 2013-07-22 | B74: Calypso | C74: Added to line: 12" x 12" Field Tile in colors Blanco and Negro.
A75: 2013-07-22 | B75: CC Mosaics | C75: Added to line: 12" x 12" Snow White & Black (Matte) Octagonal Mosaic.
A76: 2014-01-14 | B76: Antibes | C76: Glazed Ceramic Wall Tile.
A77: 2014-01-14 | B77: Astral | C77: 9-1/2" x 13" Wall & 18" x 18" Floor Field Tile sizes added in all colors, (replaces discontinued 10" x 13" Wall & 16" x 16" Floor Field Tile sizes). 3" x 9-1/2" Bullnose size added, (replaces discontinued 3" x 10" Bullnose size). 3/4" x 6" A106 Quarter Round added in all colors.
A78: 2014-01-14 | B78: Bergen | C78: Brick Mosaic added, available in colors Arce, Roble & Wenge.
A79: 2014-01-14 | B79: Brescia | C79: Glazed Porcelain Floor & Glazed Ceramic Wall.
A80: 2014-01-14 | B80: Calacatta | C80: The following Non-Rectified items have been added to this line: 17" x 17" Floor Field Tile, 12" x 24" Wall Field Tile, 2" x 12" Chair Rail (Moldura) & 6" x 12" Base (Zocalo).
A81: 2014-01-14 | B81: Calypso | C81: The following items have been added to this line: 10" x 28" Suite Waves Field Tile, 12" x 36" Suite Bricks, Suite Cubes, Suite Lines, Suite Noblesse & Suite Sublime Field Tile.
A82: 2014-01-14 | B82: CarraraHD | C82: 9-1/2" x 13" Wall Field Tile size added, (replaces discontinued 10" x 13" Wall Field Tile size). 3" x 9-1/2" Bullnose size added, (replaces discontinued 3" x 10" Bullnose size).
A83: 2014-01-14 | B83: CC Mosaics | C83: Basket Weave & Penny Round Mosaics added.
A84: 2014-01-14 | B84: CC Porcelain | C84: Color U726 Cobalt added and is available in all formats.
A85: 2014-01-14 | B85: Color Collection - Bright | C85: 6" x 18" Field Tile added to Group 0 colors U074 Biscuit, U761 Tender Gray & U081 White Ice only, 6" x 18" Bullnose will be available in colors U074 Biscuit & U081 White Ice only. 6" x 18" Field Tile added to Group 2 colors U796 Cocoa, U785 Fawn & U789 Taupe only. 6" x 18" Field Tile added to Group 3 color U759 Black only. 4-1/4" x 10" Beveled Edge Field Tile now available in Group 3 color U759 Black. Additional Trim shapes now available in Group 4 color U739 Red Pepper.
A86: 2014-01-14 | B86: Color Collection - Matte | C86: 6" x 18" Field Tile & 6" x 18" Bullnose added to Group 0 color U281 White Ice only.
A87: 2014-01-14 | B87: Copperstone | C87: Glazed Ceramic.
A88: 2014-01-14 | B88: Decorative Accents | C88: 3" x 6" Crackled Field Tile added and is available in colors U078 Bone & U081 White Ice only. 3" x 6" Ivy Listello added and is available in colors 074 Biscuit, 759 Black, 072 Snow White, 761 Tender Gray and 081 White Ice only.
A89: 2014-01-14 | B89: Emperador | C89: Glazed Porcelain Floor & Glazed Ceramic Wall Tile.
A90: 2014-01-14 | B90: Equinox | C90: 9-1/2" x 13" Wall Field Tile size added, (replaces discontinued 10" x 13" Wall Field Tile size). 3" x 9-1/2" Bullnose size added, (replaces discontinued 3" x 10" Bullnose size).
A91: 2014-01-14 | B91: Fresno | C91: 9-1/2" x 13" Wall & 18" x 18" Floor Field Tile sizes added in all colors, (replaces discontinued 10" x 13" Wall & 16" x 16" Floor Field Tile sizes). 3" x 9-1/2" Bullnose size added, (replaces discontinued 3" x 10" Bullnose size).
A92: 2014-01-14 | B92: Life | C92: Glazed Ceramic Wall Tile.
A93: 2014-01-14 | B93: Linen | C93: 2" x 2" Dot Mounted Mosaic added and is available in all colors.
A94: 2014-01-14 | B94: Liso | C94: Glazed Ceramic.
A95: 2014-01-14 | B95: Padova | C95: Glazed Porcelain Floor & Glazed Ceramic Wall.
A96: 2014-01-14 | B96: Pure White | C96: Rectified Glazed Porcelain.
A97: 2014-01-14 | B97: Rock Art | C97: District Multicolor Mosaics & Mons Mosaics added.
A98: 2014-01-14 | B98: Santana | C98: Glazed Ceramic.
A99: 2014-01-14 | B99: Stratos Apolo | C99: 3-3/4" x 12" Bullnose added.
A100: 2014-01-14 | B100: Stratos Artic | C100: 12" x 12" Field Tile size added.
A101: 2014-01-14 | B101: Stratos Atmosphere | C101: 3" x 12" Bullnose added and is available in all colors & both finishes.
A102: 2014-01-14 | B102: Yellowstone | C102: Rectified Through-Body Porcelain.
A103: 2015-02-26 | B103: Astral | C103: New 3" x 10" Willow wall Listello added and is available in Luna and Sand colors only.
A104: 2015-02-26 | B104: Bath Accessories | C104: 1040T 7" x 7" Corner Shelf added and is available in color Snow White (Glossy) only.
A105: 2015-02-26 | B105: Botania | C105: Glazed Porcelain Floor.
A106: 2015-02-26 | B106: Boulevard | C106: Glazed Porcelain Floor.
A107: 2015-02-26 | B107: Brescia | C107: The following items have been added to this line: color Natural Gray 12" x 24" Field Tile size and S43C9 3" x 12" Bullnose. 3" x 17" Bullnose in color Bright Gray.
A108: 2015-02-26 | B108: Calacatta | C108: The following items have been added to this line: color Natural Blanco 12" x 24" & 24" x 24" Field Tile sizes and S43C9 3" x 12" Bullnose. 24" x 24" Field Tile and 3" x 17" Bullnose in color Bright Blanco.
A109: 2015-02-26 | B109: Calypso | C109: 12" x 18" Field Tile and 12" x 36" Suite Frame Field Tile added and are available in color Blanco only. Color Negro Bright added in is available in the 12" x 36" Suite Noblesse and Suite Sublime Field Tiles only.
A110: 2015-02-26 | B110: Carrara HD | C110: 12" x 12" and 18" x 18" Glazed Ceramic Field Tile and 3" x 12" Glazed Ceramic Bullnose added.
A111: 2015-02-26 | B111: Color Collection | C111: 4-1/4" x 16" Field Tile and S4169 4-1/4" x 16" Bullnose added and available in colors U081 White Ice (Bright) and U281 White Ice (Matte) only.
A112: 2015-02-26 | B112: Decorative Accents | C112: 4-1/4" x 4-1/4" and 8-1/2" x 8-1/2" Diamond Inserts added and available in color U072 Snow White only.
A113: 2015-02-26 | B113: Legend | C113: Glazed Porcelain Floor.
A114: 2015-02-26 | B114: Padova | C114: The following items have been added to this line: color Natural Beige 12" x 24" Field Tile size and S43C9 3" x 12" Bullnose. 3" x 17" Bullnose in color Beige.
A115: 2015-02-26 | B115: Pure | C115: Colors Black and Grey added.
A116: 2015-02-26 | B116: Stratos Orion | C116: 4" x 4" Insert added and is available in color Negro/Antracita only.
A117: 2015-02-26 | B117: White Marble | C117: Glazed Porcelain Floor and Glazed Ceramic Wall.
A118: 2017-02-24 | B118: Astral | C118: Mosaic added and is available in all colors.
A119: 2017-02-24 | B119: Avila | C119: Color Antracita added, 12" x 24" and 24" x 24" Rectified Field Tile formats and a 3" x 12" Bullnose.
A120: 2017-02-24 | B120: Bergen | C120: Color Gris added in the 6" x 24" Field Tile format only.
A121: 2017-02-24 | B121: CC Mosaics | C121: The following Mosaic patterns have been added: 1" x 1" Squares, 1" x 1" Hexagon, 2" Lantern and Diamond Herringbone. The following colors have been added to these existing patterns: Black (Matte) 1" x 1" Hexagon, White & Grey (Matte) Basket Weave, Snow White & Gray (Matte) Octagonal and colors Grey (Glossy) and Grey (Matte) Penny Round.
A122: 2017-02-24 | B122: CC Mosaics Plus+ | C122: Glazed Porcelain Mesh-Mounted Mosaics.
A123: 2017-02-24 | B123: Cedrick | C123: Glazed Porcelain Floor.
A124: 2017-02-24 | B124: Chelsea | C124: Glazed Ceramic Wall.
A125: 2017-02-24 | B125: Color Collection - Bright | C125: The following have been added to this line in Color Group 0 Bright: 2" x 8", 9-1/2" x 13" and 13" x 24" Field Tile formats. 4-1/4" x 16" Field Tile and Bullnose formats added to Group 2 Bright color U789 Taupe and to Group 2 Matte color U289 Taupe only.
A126: 2017-02-24 | B126: Crema Marfil | C126: Glazed Ceramic Wall.
A127: 2017-02-24 | B127: Decorative Accents | C127: New items added in color U081 White Ice.
A128: 2017-02-24 | B128: Downtown | C128: Color Body Porcelain.
A129: 2017-02-24 | B129: Fabric & Tweed | C129: Color Body Porcelain.
A130: 2017-02-24 | B130: Fossil | C130: Glazed Porcelain.
A131: 2017-02-24 | B131: Land | C131: Glazed Porcelain.
A132: 2017-02-24 | B132: Legend | C132: 12" x 24" Polished Rectified Field Tile format added and is available in colors Blanco and Graphite only.
A133: 2017-02-24 | B133: Maiolica | C133: Glazed Ceramic Wall.
A134: 2017-02-24 | B134: Marmi | C134: Glazed Ceramic.
A135: 2017-02-24 | B135: Planet | C135: Glazed Ceramic.
A136: 2017-02-24 | B136: Positano | C136: Glazed Porcelain Floor and Glazed Ceramic Wall.
A137: 2017-02-24 | B137: Rock Art | C137: The following Mosaics that had been discontinued in February 2015 are now available again: Trajano Marron, Mons Hexagon, Mons Link and Mons Muretto. The following Mosaics have also been added: Aruba Perla, Hexagon Carrara, Padua Serpentino, Padua Travertino, Penny Round Carrara and Penny Round Gray Granite.
A138: 2017-02-24 | B138: Sequoia | C138: Glazed Porcelain.
A139: 2017-02-24 | B139: Serpentino | C139: Glazed Porcelain.
A140: 2017-02-24 | B140: Silk | C140: Glazed Porcelain.
A141: 2017-02-24 | B141: Statuary | C141: Glazed Porcelain Floor and Glazed Ceramic Wall.
A142: 2017-02-24 | B142: Stone Magna | C142: Glazed Porcelain.
A143: 2017-02-24 | B143: Veranda | C143: Glazed Ceramic.
A144: 2017-02-24 | B144: White Marble | C144: Wall Field Tile and Bullnose added.
A145: 2017-02-24 | B145: Yellowstone / Ocala | C145: 8" x 33" Field Tile format added.
A146: 2018-01-25 | B146: Basel | C146: Color Body Porcelain.
A147: 2018-01-25 | B147: Bianco Venatino | C147: Glazed Porcelain.
A148: 2018-01-25 | B148: CC Mosaics | C148: Multicolor Penny Round Mosaic added and is available in colors Black & White (Matte) and Gray & White (Matte).
A149: 2018-01-25 | B149: CC Mosaics Plus+ | C149: 2" x 4" Beveled Brick Mosaic added and is available in colors Black (Glossy), Taupe (Glossy), Tender Gray (Glossy) & White Ice (Glossy).
A150: 2018-01-25 | B150: Cliff | C150: Color Body Porcelain.
A151: 2018-01-25 | B151: Color Collection - Bright | C151: 3" x 12" Field Tile Format added to the Group 0 Colors, except color U074 Biscuit.
A152: 2018-01-25 | B152: Color Collection - Matte | C152: 3" x 12" Field Tile Format added to the Group 0 Colors.
A153: 2018-01-25 | B153: Derby | C153: Color Body Porcelain.
A154: 2018-01-25 | B154: Fabric & Tweed | C154: Fabric Mosaic format added and is available in all colors.
A155: 2018-01-25 | B155: Flamant | C155: Glazed Porcelain.
A156: 2018-01-25 | B156: Havana | C156: Glazed Porcelain.
A157: 2018-01-25 | B157: Kappa | C157: Glazed Porcelain.
A158: 2018-01-25 | B158: Maiolica | C158: 3" x 6" Field Tile, 3" x 12" Crackled Field Tile, 7" x 8" Hexagon Field Tile, 3" x 6" Bullnose and 3" x 12" Crackled Bullnose formats added.
A159: 2018-01-25 | B159: Marble Pulpis | C159: Glazed Ceramic Wall.
A160: 2018-01-25 | B160: Marble Slabs | C160: Polished Porcelain.
A161: 2018-01-25 | B161: Masai | C161: Glazed Ceramic Wall.
A162: 2018-01-25 | B162: Nolita | C162: Color Body Porcelain.
A163: 2018-01-25 | B163: Nolita Bold | C163: Color Body Porcelain.
A164: 2018-01-25 | B164: Piasentina | C164: Polished Porcelain.
A165: 2018-01-25 | B165: Plaster & Melt | C165: Color Body Porcelain.
A166: 2018-01-25 | B166: Rock Art | C166: Several Mosaic patterns added.
A167: 2018-08-01 | B167: Color Collection - Bright Group 1 Colors | C167: Color U759 Black now available in the 4-1/4" x 10" Beveled Edge Field Tile format.
A168: 2018-08-01 | B168: CC Mosaics | C168: Basket Weave Mosaic in Color Black (Matte) added.
A169: 2018-10-19 | B169: Color Collection - Bright Group 0 Colors | C169: The following format has been added to colors U761 Tender Gray & U081 White Ice : S4312, 3" x 12" Bullnose.
A170: 2018-10-19 | B170: Maiolica | C170: The following formats have been added to colors Blue Steel and Taupe: 1/2" x 10" Pencil Liner, 2" x 10" Victorian Chair Rail and 2-3/4" x 10" Cornice Listello.
A171: 2018-10-19 | B171: Rock Art | C171: The following Mosaic pattens have been added: Dots Mosaic available in colors Nero Marquina and White Statuary and a Terrazo Scales Mosaic available in colors Gray and White.
A172: 2018-10-19 | B172: Slates US | C172: Color Body Porcelain
A173: 2019-03-06 | B173: Amazon | C173: Glazed Ceramic Wall
A174: 2019-03-06 | B174: Ash | C174: Glazed Porcelain
A175: 2019-03-06 | B175: Borneo | C175: Color Body Porcelain
A176: 2019-03-06 | B176: Borneo Chevron | C176: Glazed Porcelain
A177: 2019-03-06 | B177: Brickell | C177: Glazed Ceramic Wall
A178: 2019-03-06 | B178: Burgos | C178: Color Body Porcelain
A179: 2019-03-06 | B179: CC Textures | C179: Glazed Ceramic Wall
A180: 2019-03-06 | B180: Flow | C180: Glazed Ceramic Wall
A181: 2019-03-06 | B181: Habitat | C181: Color Body Porcelain
A182: 2019-03-06 | B182: Jersey | C182: Glazed Ceramic Floor
A183: 2019-03-06 | B183: Joy | C183: Glazed Ceramic Wall
A184: 2019-03-06 | B184: Land | C184: Glazed Porcelain
A185: 2019-03-06 | B185: Merino | C185: Glazed Ceramic Floor
A186: 2019-03-06 | B186: Metals | C186: Brushed Aluminum Mosaics
A187: 2019-03-06 | B187: Momentum | C187: Glazed Porcelain
A188: 2019-03-06 | B188: Nordico | C188: Glazed Porcelain
A189: 2019-03-06 | B189: Norfolk | C189: Color Body Porcelain
A190: 2019-03-06 | B190: Prime | C190: Glazed Porcelain
A191: 2019-03-06 | B191: Rock Art | C191: The following Mosaic pattens have been added: Metal Mosaic available in four colors and Pebble Mosaic available in three colors.
A192: 2019-03-06 | B192: Trevi | C192: Color Body Porcelain
A193: 2019-03-06 | B193: Wynwood | C193: Color Body Porcelain
A194: 2019-06-14 | B194: Color Collection - Bright Group 0 Colors | C194: The following format has been added to color U081 White Ice : 6" x 18" x 7mm Field Tile.
A195: 2019-10-10 | B195: Abbey | C195: Color Body Porcelain
A196: 2019-10-10 | B196: Casablanca | C196: Glazed Porcelain
A197: 2019-10-10 | B197: Color Collection - Bright Group 0 Colors | C197: S619TN 6" x 6" Sanitary Cove Base added and is only available in color U081 White Ice.
A198: 2019-10-10 | B198: Concrete Slabs | C198: Glazed Porcelain
A199: 2019-10-10 | B199: Linden Stone | C199: Glazed Porcelain
A200: 2019-10-10 | B200: Maiolica | C200: 4-1/4" x 10" Matte Field Tile and 3" x 10" Matte Bullnose added and are available in all colors.
A201: 2019-10-10 | B201: Maiolica Floor | C201: Glazed Porcelain
... 545 more rows
